Workbook

Sheet Sheet1 (hidden)

Sheet Help
D1: دت | H1: پروژه نمونه بصورت آزمایشی
H2: ندارد متن آزمایشی است
H3: آریان تدبیر غرب
H4: آبگستران
B5: جهت اجرای برنامه لطفا ماکرو را از مسیرزیر فعال کنید. (Office 2007 & Office 2010) سپس دوباره برنامه را اجرا کنید. Office Button --> Excel Option --> Trust Center --> Trust Center setting --> Macro Settings --> Enable all Macros
D10: معرفي برنامه :
D11: اين برنامه جهت تنظيم آناليز و پيشنهاد قيمت (جدول شماره 5) مطابق بخشنامه 54/4951-102/5453 سازمان برنامه و بودجه تنظيم شده است.
D12: روش كار با برنامه :
D13: گام اول :
D14: جهت شروع كار با اين برنامه ابتدا مي توانيد مشخصات مناقصه شامل : نام كارفرما يا دستگاه اجرايي - نام پيمانكار- نام مشاور را در برگه Metreh از طریق دکمه اطلاعات پروژه وارد نمائيد.
D15: گام دوم :
D16: پس از وارد كردن مشخصات مناقصه وارد برگه Metreh شويد و شماره رديفهاي مورد نياز جهت آناليز را وارد كرده و مقدار آنها را نيز مشخص كنيد.
D17: گام سوم :
D18: پس از وارد كردن رديفها و مقادير آنها وارد برگه Analiz شويد . مهمترين قسمت برنامه كار با اين برگه مي باشد . قسمتهاي مختلف اين برگه و نحوه كاركرد به شرح زير مي باشد.
D19: قسمت اول تحت عنوان «انتخاب رديف آناليز» جهت انتخاب رديفي كه مي خواهيد آناليز كنيد مي باشد اين قسمت رديفها را از برگه Metreh فرخواني مي كند . با انتخاب هر رديف آناليز مربوط به آن رديف تنظيم ميشود.
D20: قسمت دوم تحت عنوان «آناليز بر اساس قيمت» جهت انتخاب نحوه اعمال قيمت منابع استفاده شده در آناليز مي باشد كه شا مل سه قسمت مي باشد
D21: نت : قيمتهاي تعيين شده از طرف سازمان برنامه و بودجه
D22: آمار : قيمتهاي استعلام شده از سازمان آمار كشور
D23: روز : استعلام قيمت روز مي باشد.
D24: كه با انتخاب هر يك از موارد فوق قيمت مربوطه در آناليز اعمال خواهد شد. ليست كامل منابع و قيمتهاي آنها در برگه Manabeh وجود دارد و قابل ويرايش مي باشند.
D25: درصورتيكه بخواهيد قيمت هريك از عوامل استفاده شده را ويرايش كنيد نياز به جستجو بين صدها عامل در برگه Manabeh توسط شما نيست با يك با دابل كليك بر روي عنوان عامل در برگه Analiz برنامه عامل مرد نظر را در برگه Manabeh جستجو كرد و انتخاب مي كندكه شما مي توانيد قيمت مورد نظر را وارد كنيد.
D27: قسمت سوم اين قسمت كه يك چك باكس مي باشد جهت انتخاب نحوه محاسبات مي باشد (تا آخرين رقم اعشار يا تا آخرين رقم نمايش داده شده)
D29: قسمت چهارم تحت عنوان «ضــريب آناليز» شامل سه نوع ضرايب مي باشد كه در آناليز منظور خواهند شد.
D30: ضرايب ثابت آناليز سازمان : ضرايبي هستند كه از طرف سازمان برنامه و بودجه تعريف شده است.
D31: تنظيم ضرايب (درصد رشد صفر) : ضرايبي هستند كه توسط برنامه محاسبه مي شوند و درصد رشد آناليز را با قيمتهاي منابع نت به صفر ميرساند. نحوه اعمال اينگونه است كه پس از انتخاب گزينه مذكور و كليك بر روي دكمه مقابل عنوان «تنــظيم ضـرايب درصـد رشد صفر» اعمال خواهند شد.
D32: تنظيم ضرايب (اعمال درصد رشد) : ضرايبي هستند كه توسط برنامه محاسبه مي شوند و درصد رشد آناليز را با قيمتهاي منابع نت به درصد رشد تعيين شده توسط كاربر ميرساند. نحوه اعمال اينگونه است كه پس از انتخاب گزينه مذكور و وارد كردن در صد رشد در مقابل عنوان «درصد رشد(اضافه/تخفيف) » و كليك بر روي دكمه ظرايب تنظيم و اعمال خواهند شد.
D33: گام چهارم :
D34: پس از اينكه عمليات تنظيم آناليز به اتمام رسيد نوبت مرحله گزارش گيري مي باشد كه با كليك بر روي دكمه گزارش آناليز تك تك رديفها آماده چاپ خواهد شد.
D35: پس از اينگه گزارش آماده شد مي توانيد خلاصه نتيجه آناليز را در برگه Metreh مشاهده كنيد. به اين ترتيب كه وارد برگه Metreh شده و بر روي دكمه كليك مي كنيد.
D38: این برنامه متعلق به وب سایت دفتر فنی پروژه های عمرانی می باشد.
B39: وب سایت: | E39: http://www.Kelasefan.com
B40: ایمیل: | E40: Kelasefan@Gmail.com
D41: نويسنده برنامه : اميد شيخا

Sheet MEtreh
A1: =COUNTA(A4:A2500) -> 4 | H1: جمع مبلغ برآوردي: | I1: =SUM(I4:I2500) -> 11274000 | J1: جمع مبلغ پيشنهادي: | K1: =SUM(K4:K2500) -> 0
A2: شماره آیتم | B2: شرح | C2: واحد | D2: بهاي رديف | E2: ضریب A | F2: ضریب B | G2: ضریب C | H2: مقدار | I2: بهاي كل رديف | J2: بهاي واحد پيشنهادي | K2: بهاي كل پيشنهادي | L2: درصد رشد
L3: اضافه | M3: تخفيف
A4: 020101 | B4: =IFERROR(VLOOKUP(A4,ItemDB,2,0),"") -> لوله گذاري با لوله چدني نشکن، به قطرهاي 60 يا 80 ميليمتر و عمق ترانشه تا 1.5 متر. | C4: =IFERROR(VLOOKUP(A4,ItemDB,3,0),"") -> متر طول | D4: =IFERROR(VLOOKUP(A4,ItemDB,4,0),0)*Q4*P4*O4 -> 180500 | H4: 10 | I4: =H4*D4 -> 1805000 | J4: =IFERROR(VLOOKUP("شماره رديف آناليز : "&A4,Anareport,8,0),0) -> 0 | K4: =J4*H4 -> 0 | L4: =IF(J4>D4,J4/D4-1,"") ->  | M4: =IF(J4<D4,J4/D4-1,"") -> -1 | O4: =IF(E4<>"",E4,1) -> 1 | P4: =IF(F4<>"",F4,1) -> 1 | Q4: 1
A5: 020102 | B5: لوله گذاري با لوله چدني نشکن، به قطر 100 ميليمتر و عمق ترانشه تا 1.5 متر. | C5: متر طول | D5: 183500 | H5: 20 | I5: 3670000 | J5: 0 | K5: 0 | M5: -1 | O5: =IF(E5<>"",E5,1) -> 1 | P5: 1 | Q5: 1
A6: 080101 | B6: اضافه بها به رديفهاي فصلهاي لوله گذاري و احداث حوضچه هاو نصب انشعابها ، چنانچه براي حفر ترانشه و گود برداري در زمينهاي نرم و خاکريزي، استفاده از وسايل مکانيکي به علت موقعيت مکاني مقدور نباشد و عمليات خاکي با دست و حداکثر تا عمق 2 متر انجام شود، بر حسب حجم محل حفاري . | C6: مترمكعب | D6: 41300 | H6: 30 | I6: 1239000 | J6: 0 | K6: 0 | M6: -1 | O6: 1 | P6: 1 | Q6: 1
A7: 080102 | B7: اضافه بها به رديفهاي فصلهاي لوله گذاري و احداث حوضچه ها و نصب انشعابها ، چنانچه براي حفر ترانشه و گود برداري در زمينهاي سخت و خاکريزي، استفاده از وسايل مکانيکي به علت موقعيت مکاني مقدور نباشد و عمليات خاکي با دست و حداکثر تا عمق 2 متر انجام شود، بر حسب حجم محل حفاري . | C7: مترمكعب | D7: 114000 | H7: 40 | I7: 4560000 | J7: 0 | K7: 0 | M7: -1 | O7: 1 | P7: 1 | Q7: 1
D8: 0 | I8: 0 | J8: 0 | K8: 0 | O8: 1 | P8: 1 | Q8: 1
D9: 0 | I9: 0 | J9: 0 | K9: 0 | O9: 1 | P9: 1 | Q9: 1
D10: 0 | I10: 0 | J10: 0 | K10: 0 | O10: 1 | P10: 1 | Q10: 1
D11: 0 | I11: 0 | J11: 0 | K11: 0 | O11: 1 | P11: 1 | Q11: 1
D12: 0 | I12: 0 | J12: 0 | K12: 0 | O12: 1 | P12: 1 | Q12: 1
D13: 0 | I13: 0 | J13: 0 | K13: 0 | O13: 1 | P13: 1 | Q13: 1
D14: 0 | I14: 0 | J14: 0 | K14: 0 | O14: 1 | P14: 1 | Q14: 1
D15: 0 | I15: 0 | J15: 0 | K15: 0 | O15: 1 | P15: 1 | Q15: 1
D16: 0 | I16: 0 | J16: 0 | K16: 0 | O16: 1 | P16: 1 | Q16: 1
D17: 0 | I17: 0 | J17: 0 | K17: 0 | O17: 1 | P17: 1 | Q17: 1
D18: 0 | I18: 0 | J18: 0 | K18: 0 | O18: 1 | P18: 1 | Q18: 1
D19: 0 | I19: 0 | J19: 0 | K19: 0 | O19: 1 | P19: 1 | Q19: 1
D20: 0 | I20: 0 | J20: 0 | K20: 0 | O20: 1 | P20: 1 | Q20: 1
D21: 0 | I21: 0 | J21: 0 | K21: 0 | O21: 1 | P21: 1 | Q21: 1
D22: 0 | I22: 0 | J22: 0 | K22: 0 | O22: 1 | P22: 1 | Q22: 1
D23: 0 | I23: 0 | J23: 0 | K23: 0 | O23: 1 | P23: 1 | Q23: 1
D24: 0 | I24: 0 | J24: 0 | K24: 0 | O24: 1 | P24: 1 | Q24: 1
D25: 0 | I25: 0 | J25: 0 | K25: 0 | O25: 1 | P25: 1 | Q25: 1
D26: 0 | I26: 0 | J26: 0 | K26: 0 | O26: 1 | P26: 1 | Q26: 1
D27: 0 | I27: 0 | J27: 0 | K27: 0 | O27: 1 | P27: 1 | Q27: 1
D28: 0 | I28: 0 | J28: 0 | K28: 0 | O28: 1 | P28: 1 | Q28: 1
D29: 0 | I29: 0 | J29: 0 | K29: 0 | O29: 1 | P29: 1 | Q29: 1
D30: 0 | I30: 0 | J30: 0 | K30: 0 | O30: 1 | P30: 1 | Q30: 1
D31: 0 | I31: 0 | J31: 0 | K31: 0 | O31: 1 | P31: 1 | Q31: 1
D32: 0 | I32: 0 | J32: 0 | K32: 0 | O32: 1 | P32: 1 | Q32: 1
D33: 0 | I33: 0 | J33: 0 | K33: 0 | O33: 1 | P33: 1 | Q33: 1
D34: 0 | I34: 0 | J34: 0 | K34: 0 | O34: 1 | P34: 1 | Q34: 1
D35: 0 | I35: 0 | J35: 0 | K35: 0 | O35: 1 | P35: 1 | Q35: 1
D36: 0 | I36: 0 | J36: 0 | K36: 0 | O36: 1 | P36: 1 | Q36: 1
D37: 0 | I37: 0 | J37: 0 | K37: 0 | O37: 1 | P37: 1 | Q37: 1
D38: 0 | I38: 0 | J38: 0 | K38: 0 | O38: 1 | P38: 1 | Q38: 1
D39: 0 | I39: 0 | J39: 0 | K39: 0 | O39: 1 | P39: 1 | Q39: 1
D40: 0 | I40: 0 | J40: 0 | K40: 0 | O40: 1 | P40: 1 | Q40: 1
D41: 0 | I41: 0 | J41: 0 | K41: 0 | O41: 1 | P41: 1 | Q41: 1
D42: 0 | I42: 0 | J42: 0 | K42: 0 | O42: 1 | P42: 1 | Q42: 1
D43: 0 | I43: 0 | J43: 0 | K43: 0 | O43: 1 | P43: 1 | Q43: 1
D44: 0 | I44: 0 | J44: 0 | K44: 0 | O44: 1 | P44: 1 | Q44: 1
D45: 0 | I45: 0 | J45: 0 | K45: 0 | O45: 1 | P45: 1 | Q45: 1
D46: 0 | I46: 0 | J46: 0 | K46: 0 | O46: 1 | P46: 1 | Q46: 1
D47: 0 | I47: 0 | J47: 0 | K47: 0 | O47: 1 | P47: 1 | Q47: 1
D48: 0 | I48: 0 | J48: 0 | K48: 0 | O48: 1 | P48: 1 | Q48: 1
D49: 0 | I49: 0 | J49: 0 | K49: 0 | O49: 1 | P49: 1 | Q49: 1
D50: 0 | I50: 0 | J50: 0 | K50: 0 | O50: 1 | P50: 1 | Q50: 1
D51: 0 | I51: 0 | J51: 0 | K51: 0 | O51: 1 | P51: 1 | Q51: 1
D52: 0 | I52: 0 | J52: 0 | K52: 0 | O52: 1 | P52: 1 | Q52: 1
D53: 0 | I53: 0 | J53: 0 | K53: 0 | O53: 1 | P53: 1 | Q53: 1
D54: 0 | I54: 0 | J54: 0 | K54: 0 | O54: 1 | P54: 1 | Q54: 1
D55: 0 | I55: 0 | J55: 0 | K55: 0 | O55: 1 | P55: 1 | Q55: 1
D56: 0 | I56: 0 | J56: 0 | K56: 0 | O56: 1 | P56: 1 | Q56: 1
D57: 0 | I57: 0 | J57: 0 | K57: 0 | O57: 1 | P57: 1 | Q57: 1
D58: 0 | I58: 0 | J58: 0 | K58: 0 | O58: 1 | P58: 1 | Q58: 1
D59: 0 | I59: 0 | J59: 0 | K59: 0 | O59: 1 | P59: 1 | Q59: 1
D60: 0 | I60: 0 | J60: 0 | K60: 0 | O60: 1 | P60: 1 | Q60: 1
D61: 0 | I61: 0 | J61: 0 | K61: 0 | O61: 1 | P61: 1 | Q61: 1
D62: 0 | I62: 0 | J62: 0 | K62: 0 | O62: 1 | P62: 1 | Q62: 1
D63: 0 | I63: 0 | J63: 0 | K63: 0 | O63: 1 | P63: 1 | Q63: 1
D64: 0 | I64: 0 | J64: 0 | K64: 0 | O64: 1 | P64: 1 | Q64: 1
D65: 0 | I65: 0 | J65: 0 | K65: 0 | O65: 1 | P65: 1 | Q65: 1
D66: 0 | I66: 0 | J66: 0 | K66: 0 | O66: 1 | P66: 1 | Q66: 1
D67: 0 | I67: 0 | J67: 0 | K67: 0 | O67: 1 | P67: 1 | Q67: 1
B68: =IFERROR(VLOOKUP(A68,ItemDB,2,0),"") ->  | C68: =IFERROR(VLOOKUP(A68,ItemDB,3,0),"") ->  | D68: =IFERROR(VLOOKUP(A68,ItemDB,4,0),0)*Q68*P68*O68 -> 0 | I68: =H68*D68 -> 0 | J68: =IFERROR(VLOOKUP("شماره رديف آناليز : "&A68,Anareport,8,0),0) -> 0 | K68: =J68*H68 -> 0 | L68: =IF(J68>D68,J68/D68-1,"") ->  | M68: =IF(J68<D68,J68/D68-1,"") ->  | O68: 1 | P68: 1 | Q68: 1
D69: 0 | I69: 0 | J69: 0 | K69: 0 | O69: =IF(E69<>"",E69,1) -> 1 | P69: 1 | Q69: 1
D70: 0 | I70: 0 | J70: 0 | K70: 0 | O70: 1 | P70: 1 | Q70: 1
D71: 0 | I71: 0 | J71: 0 | K71: 0 | O71: 1 | P71: 1 | Q71: 1
D72: 0 | I72: 0 | J72: 0 | K72: 0 | O72: 1 | P72: 1 | Q72: 1
D73: 0 | I73: 0 | J73: 0 | K73: 0 | O73: 1 | P73: 1 | Q73: 1
D74: 0 | I74: 0 | J74: 0 | K74: 0 | O74: 1 | P74: 1 | Q74: 1
D75: 0 | I75: 0 | J75: 0 | K75: 0 | O75: 1 | P75: 1 | Q75: 1
D76: 0 | I76: 0 | J76: 0 | K76: 0 | O76: 1 | P76: 1 | Q76: 1
D77: 0 | I77: 0 | J77: 0 | K77: 0 | O77: 1 | P77: 1 | Q77: 1
D78: 0 | I78: 0 | J78: 0 | K78: 0 | O78: 1 | P78: 1 | Q78: 1
D79: 0 | I79: 0 | J79: 0 | K79: 0 | O79: 1 | P79: 1 | Q79: 1
D80: 0 | I80: 0 | J80: 0 | K80: 0 | O80: 1 | P80: 1 | Q80: 1
D81: 0 | I81: 0 | J81: 0 | K81: 0 | O81: 1 | P81: 1 | Q81: 1
D82: 0 | I82: 0 | J82: 0 | K82: 0 | O82: 1 | P82: 1 | Q82: 1
D83: 0 | I83: 0 | J83: 0 | K83: 0 | O83: 1 | P83: 1 | Q83: 1
D84: 0 | I84: 0 | J84: 0 | K84: 0 | O84: 1 | P84: 1 | Q84: 1
D85: 0 | I85: 0 | J85: 0 | K85: 0 | O85: 1 | P85: 1 | Q85: 1
D86: 0 | I86: 0 | J86: 0 | K86: 0 | O86: 1 | P86: 1 | Q86: 1
D87: 0 | I87: 0 | J87: 0 | K87: 0 | O87: 1 | P87: 1 | Q87: 1
D88: 0 | I88: 0 | J88: 0 | K88: 0 | O88: 1 | P88: 1 | Q88: 1
D89: 0 | I89: 0 | J89: 0 | K89: 0 | O89: 1 | P89: 1 | Q89: 1
D90: 0 | I90: 0 | J90: 0 | K90: 0 | O90: 1 | P90: 1 | Q90: 1
D91: 0 | I91: 0 | J91: 0 | K91: 0 | O91: 1 | P91: 1 | Q91: 1
D92: 0 | I92: 0 | J92: 0 | K92: 0 | O92: 1 | P92: 1 | Q92: 1
D93: 0 | I93: 0 | J93: 0 | K93: 0 | O93: 1 | P93: 1 | Q93: 1
D94: 0 | I94: 0 | J94: 0 | K94: 0 | O94: 1 | P94: 1 | Q94: 1
D95: 0 | I95: 0 | J95: 0 | K95: 0 | O95: 1 | P95: 1 | Q95: 1
D96: 0 | I96: 0 | J96: 0 | K96: 0 | O96: 1 | P96: 1 | Q96: 1
D97: 0 | I97: 0 | J97: 0 | K97: 0 | O97: 1 | P97: 1 | Q97: 1
D98: 0 | I98: 0 | J98: 0 | K98: 0 | O98: 1 | P98: 1 | Q98: 1
D99: 0 | I99: 0 | J99: 0 | K99: 0 | O99: 1 | P99: 1 | Q99: 1
D100: 0 | I100: 0 | J100: 0 | K100: 0 | O100: 1 | P100: 1 | Q100: 1
D101: 0 | I101: 0 | J101: 0 | K101: 0 | O101: 1 | P101: 1 | Q101: 1
D102: 0 | I102: 0 | J102: 0 | K102: 0 | O102: 1 | P102: 1 | Q102: 1
D103: 0 | I103: 0 | J103: 0 | K103: 0 | O103: 1 | P103: 1 | Q103: 1
D104: 0 | I104: 0 | J104: 0 | K104: 0 | O104: 1 | P104: 1 | Q104: 1
D105: 0 | I105: 0 | J105: 0 | K105: 0 | O105: 1 | P105: 1 | Q105: 1
D106: 0 | I106: 0 | J106: 0 | K106: 0 | O106: 1 | P106: 1 | Q106: 1
D107: 0 | I107: 0 | J107: 0 | K107: 0 | O107: 1 | P107: 1 | Q107: 1
D108: 0 | I108: 0 | J108: 0 | K108: 0 | O108: 1 | P108: 1 | Q108: 1
D109: 0 | I109: 0 | J109: 0 | K109: 0 | O109: 1 | P109: 1 | Q109: 1
D110: 0 | I110: 0 | J110: 0 | K110: 0 | O110: 1 | P110: 1 | Q110: 1
D111: 0 | I111: 0 | J111: 0 | K111: 0 | O111: 1 | P111: 1 | Q111: 1
D112: 0 | I112: 0 | J112: 0 | K112: 0 | O112: 1 | P112: 1 | Q112: 1
D113: 0 | I113: 0 | J113: 0 | K113: 0 | O113: 1 | P113: 1 | Q113: 1
D114: 0 | I114: 0 | J114: 0 | K114: 0 | O114: 1 | P114: 1 | Q114: 1
D115: 0 | I115: 0 | J115: 0 | K115: 0 | O115: 1 | P115: 1 | Q115: 1
D116: 0 | I116: 0 | J116: 0 | K116: 0 | O116: 1 | P116: 1 | Q116: 1
D117: 0 | I117: 0 | J117: 0 | K117: 0 | O117: 1 | P117: 1 | Q117: 1
D118: 0 | I118: 0 | J118: 0 | K118: 0 | O118: 1 | P118: 1 | Q118: 1
D119: 0 | I119: 0 | J119: 0 | K119: 0 | O119: 1 | P119: 1 | Q119: 1
D120: 0 | I120: 0 | J120: 0 | K120: 0 | O120: 1 | P120: 1 | Q120: 1
D121: 0 | I121: 0 | J121: 0 | K121: 0 | O121: 1 | P121: 1 | Q121: 1
D122: 0 | I122: 0 | J122: 0 | K122: 0 | O122: 1 | P122: 1 | Q122: 1
D123: 0 | I123: 0 | J123: 0 | K123: 0 | O123: 1 | P123: 1 | Q123: 1
D124: 0 | I124: 0 | J124: 0 | K124: 0 | O124: 1 | P124: 1 | Q124: 1
D125: 0 | I125: 0 | J125: 0 | K125: 0 | O125: 1 | P125: 1 | Q125: 1
D126: 0 | I126: 0 | J126: 0 | K126: 0 | O126: 1 | P126: 1 | Q126: 1
D127: 0 | I127: 0 | J127: 0 | K127: 0 | O127: 1 | P127: 1 | Q127: 1
D128: 0 | I128: 0 | J128: 0 | K128: 0 | O128: 1 | P128: 1 | Q128: 1
D129: 0 | I129: 0 | J129: 0 | K129: 0 | O129: 1 | P129: 1 | Q129: 1
D130: 0 | I130: 0 | J130: 0 | K130: 0 | O130: 1 | P130: 1 | Q130: 1
D131: 0 | I131: 0 | J131: 0 | K131: 0 | O131: 1 | P131: 1 | Q131: 1
B132: =IFERROR(VLOOKUP(A132,ItemDB,2,0),"") ->  | C132: =IFERROR(VLOOKUP(A132,ItemDB,3,0),"") ->  | D132: =IFERROR(VLOOKUP(A132,ItemDB,4,0),0)*Q132*P132*O132 -> 0 | I132: =H132*D132 -> 0 | J132: =IFERROR(VLOOKUP("شماره رديف آناليز : "&A132,Anareport,8,0),0) -> 0 | K132: =J132*H132 -> 0 | L132: =IF(J132>D132,J132/D132-1,"") ->  | M132: =IF(J132<D132,J132/D132-1,"") ->  | O132: 1 | P132: 1 | Q132: 1
D133: 0 | I133: 0 | J133: 0 | K133: 0 | O133: =IF(E133<>"",E133,1) -> 1 | P133: 1 | Q133: 1
D134: 0 | I134: 0 | J134: 0 | K134: 0 | O134: 1 | P134: 1 | Q134: 1
D135: 0 | I135: 0 | J135: 0 | K135: 0 | O135: 1 | P135: 1 | Q135: 1
D136: 0 | I136: 0 | J136: 0 | K136: 0 | O136: 1 | P136: 1 | Q136: 1
D137: 0 | I137: 0 | J137: 0 | K137: 0 | O137: 1 | P137: 1 | Q137: 1
D138: 0 | I138: 0 | J138: 0 | K138: 0 | O138: 1 | P138: 1 | Q138: 1
D139: 0 | I139: 0 | J139: 0 | K139: 0 | O139: 1 | P139: 1 | Q139: 1
D140: 0 | I140: 0 | J140: 0 | K140: 0 | O140: 1 | P140: 1 | Q140: 1
D141: 0 | I141: 0 | J141: 0 | K141: 0 | O141: 1 | P141: 1 | Q141: 1
D142: 0 | I142: 0 | J142: 0 | K142: 0 | O142: 1 | P142: 1 | Q142: 1
D143: 0 | I143: 0 | J143: 0 | K143: 0 | O143: 1 | P143: 1 | Q143: 1
D144: 0 | I144: 0 | J144: 0 | K144: 0 | O144: 1 | P144: 1 | Q144: 1
D145: 0 | I145: 0 | J145: 0 | K145: 0 | O145: 1 | P145: 1 | Q145: 1
D146: 0 | I146: 0 | J146: 0 | K146: 0 | O146: 1 | P146: 1 | Q146: 1
D147: 0 | I147: 0 | J147: 0 | K147: 0 | O147: 1 | P147: 1 | Q147: 1
D148: 0 | I148: 0 | J148: 0 | K148: 0 | O148: 1 | P148: 1 | Q148: 1
D149: 0 | I149: 0 | J149: 0 | K149: 0 | O149: 1 | P149: 1 | Q149: 1
D150: 0 | I150: 0 | J150: 0 | K150: 0 | O150: 1 | P150: 1 | Q150: 1
D151: 0 | I151: 0 | J151: 0 | K151: 0 | O151: 1 | P151: 1 | Q151: 1
D152: 0 | I152: 0 | J152: 0 | K152: 0 | O152: 1 | P152: 1 | Q152: 1
D153: 0 | I153: 0 | J153: 0 | K153: 0 | O153: 1 | P153: 1 | Q153: 1
D154: 0 | I154: 0 | J154: 0 | K154: 0 | O154: 1 | P154: 1 | Q154: 1
D155: 0 | I155: 0 | J155: 0 | K155: 0 | O155: 1 | P155: 1 | Q155: 1
D156: 0 | I156: 0 | J156: 0 | K156: 0 | O156: 1 | P156: 1 | Q156: 1
D157: 0 | I157: 0 | J157: 0 | K157: 0 | O157: 1 | P157: 1 | Q157: 1
D158: 0 | I158: 0 | J158: 0 | K158: 0 | O158: 1 | P158: 1 | Q158: 1
D159: 0 | I159: 0 | J159: 0 | K159: 0 | O159: 1 | P159: 1 | Q159: 1
D160: 0 | I160: 0 | J160: 0 | K160: 0 | O160: 1 | P160: 1 | Q160: 1
D161: 0 | I161: 0 | J161: 0 | K161: 0 | O161: 1 | P161: 1 | Q161: 1
D162: 0 | I162: 0 | J162: 0 | K162: 0 | O162: 1 | P162: 1 | Q162: 1
D163: 0 | I163: 0 | J163: 0 | K163: 0 | O163: 1 | P163: 1 | Q163: 1
D164: 0 | I164: 0 | J164: 0 | K164: 0 | O164: 1 | P164: 1 | Q164: 1
D165: 0 | I165: 0 | J165: 0 | K165: 0 | O165: 1 | P165: 1 | Q165: 1
D166: 0 | I166: 0 | J166: 0 | K166: 0 | O166: 1 | P166: 1 | Q166: 1
D167: 0 | I167: 0 | J167: 0 | K167: 0 | O167: 1 | P167: 1 | Q167: 1
D168: 0 | I168: 0 | J168: 0 | K168: 0 | O168: 1 | P168: 1 | Q168: 1
D169: 0 | I169: 0 | J169: 0 | K169: 0 | O169: 1 | P169: 1 | Q169: 1
D170: 0 | I170: 0 | J170: 0 | K170: 0 | O170: 1 | P170: 1 | Q170: 1
D171: 0 | I171: 0 | J171: 0 | K171: 0 | O171: 1 | P171: 1 | Q171: 1
D172: 0 | I172: 0 | J172: 0 | K172: 0 | O172: 1 | P172: 1 | Q172: 1
D173: 0 | I173: 0 | J173: 0 | K173: 0 | O173: 1 | P173: 1 | Q173: 1
D174: 0 | I174: 0 | J174: 0 | K174: 0 | O174: 1 | P174: 1 | Q174: 1
D175: 0 | I175: 0 | J175: 0 | K175: 0 | O175: 1 | P175: 1 | Q175: 1
D176: 0 | I176: 0 | J176: 0 | K176: 0 | O176: 1 | P176: 1 | Q176: 1
D177: 0 | I177: 0 | J177: 0 | K177: 0 | O177: 1 | P177: 1 | Q177: 1
D178: 0 | I178: 0 | J178: 0 | K178: 0 | O178: 1 | P178: 1 | Q178: 1
D179: 0 | I179: 0 | J179: 0 | K179: 0 | O179: 1 | P179: 1 | Q179: 1
D180: 0 | I180: 0 | J180: 0 | K180: 0 | O180: 1 | P180: 1 | Q180: 1
D181: 0 | I181: 0 | J181: 0 | K181: 0 | O181: 1 | P181: 1 | Q181: 1
D182: 0 | I182: 0 | J182: 0 | K182: 0 | O182: 1 | P182: 1 | Q182: 1
D183: 0 | I183: 0 | J183: 0 | K183: 0 | O183: 1 | P183: 1 | Q183: 1
D184: 0 | I184: 0 | J184: 0 | K184: 0 | O184: 1 | P184: 1 | Q184: 1
D185: 0 | I185: 0 | J185: 0 | K185: 0 | O185: 1 | P185: 1 | Q185: 1
D186: 0 | I186: 0 | J186: 0 | K186: 0 | O186: 1 | P186: 1 | Q186: 1
D187: 0 | I187: 0 | J187: 0 | K187: 0 | O187: 1 | P187: 1 | Q187: 1
D188: 0 | I188: 0 | J188: 0 | K188: 0 | O188: 1 | P188: 1 | Q188: 1
D189: 0 | I189: 0 | J189: 0 | K189: 0 | O189: 1 | P189: 1 | Q189: 1
D190: 0 | I190: 0 | J190: 0 | K190: 0 | O190: 1 | P190: 1 | Q190: 1
D191: 0 | I191: 0 | J191: 0 | K191: 0 | O191: 1 | P191: 1 | Q191: 1
D192: 0 | I192: 0 | J192: 0 | K192: 0 | O192: 1 | P192: 1 | Q192: 1
D193: 0 | I193: 0 | J193: 0 | K193: 0 | O193: 1 | P193: 1 | Q193: 1
D194: 0 | I194: 0 | J194: 0 | K194: 0 | O194: 1 | P194: 1 | Q194: 1
D195: 0 | I195: 0 | J195: 0 | K195: 0 | O195: 1 | P195: 1 | Q195: 1
B196: =IFERROR(VLOOKUP(A196,ItemDB,2,0),"") ->  | C196: =IFERROR(VLOOKUP(A196,ItemDB,3,0),"") ->  | D196: =IFERROR(VLOOKUP(A196,ItemDB,4,0),0)*Q196*P196*O196 -> 0 | I196: =H196*D196 -> 0 | J196: =IFERROR(VLOOKUP("شماره رديف آناليز : "&A196,Anareport,8,0),0) -> 0 | K196: =J196*H196 -> 0 | L196: =IF(J196>D196,J196/D196-1,"") ->  | M196: =IF(J196<D196,J196/D196-1,"") ->  | O196: 1 | P196: 1 | Q196: 1
D197: 0 | I197: 0 | J197: 0 | K197: 0 | O197: =IF(E197<>"",E197,1) -> 1 | P197: 1 | Q197: 1
D198: 0 | I198: 0 | J198: 0 | K198: 0 | O198: 1 | P198: 1 | Q198: 1
D199: 0 | I199: 0 | J199: 0 | K199: 0 | O199: 1 | P199: 1 | Q199: 1
D200: 0 | I200: 0 | J200: 0 | K200: 0 | O200: 1 | P200: 1 | Q200: 1
... 2300 more rows

Sheet Analiz
B1: =C7 -> 2 | J1: انتخاب رديف آناليز | K1: ضــريب آناليز
B2: 2 | J2: آناليز بر اساس قيمت | K2: تنــظيم ضـرايب درصـد رشد صفر | Q2: ضرايب ثابت آناليز سازمان | T2: نت
B3: 2 | J3: اعمال محاسبات تا آخرين رقم اعشار | K3: درصد رشد(اضافه/تخفيف) | Q3: تنظيم ضرايب (درصد رشد صفر) | T3: آمار
A4: - | B4: 2 | I4: ="درصد رشد محاسبه شده "&O113*100&"% درصد." -> درصد رشد محاسبه شده 10% درصد. | Q4: تنظيم ضرايب (اعمال درصد رشد) | T4: روز
B5: =B7 -> 2 | E5: 080102 | I5: =VLOOKUP(F6,FsolDB,2,0) -> فصل8. عملیات خاکی و مرمت نوار حفاری | Q5: تنظيم ضرايب (اعمال درصد رشد) | T5: نت | U5: 10
B6: =C7 -> 2 | F6: =ROUND(E7*0.0001,0) -> 8 | I6: ="شماره رديف آناليز : "&E7 -> شماره رديف آناليز : 080102 | K6: =VLOOKUP(E7,ItemDB,2,0) -> اضافه بها به رديفهاي فصلهاي لوله گذاري و احداث حوضچه ها و نصب انشعابها ، چنانچه براي حفر ترانشه و گود برداري در زمينهاي سخت و خاکريزي، استفاده از وسايل مکانيکي به علت موقعيت مکاني مقدور نباشد و عمليات خاکي با دست و حداکثر تا عمق 2 متر انجام شود، بر حسب حجم محل حفاري . | P6: =O112 -> 125400 | U6: =U5/100+1 -> 1.1
B7: =C7 -> 2 | C7: =IF(F6>0,2,0) -> 2 | E7: 080102 | I7: ="واحــد : "&VLOOKUP(E7,ItemDB,3,0) -> واحــد : مترمكعب
B8: 2 | I8: ="مقدار : "&VLOOKUP(E7,metreh,8,0) -> مقدار : 40 | T8: ضريب صفر | U8: ضريب پيشنهاد
B9: =IF(I10>0,2,0) -> 2 | I9: رديف | J9: نيروي انساني | K9: واحد | L9: مقدار | M9: بهاي واحد | N9: ضريب | O9: بهاي کل | R9: قيمت در مقداردر ضريب | S9: ضريب سازمان | T9: =U9 -> 125400 | U9: =O112 -> 125400 | V9: قيمت رشد صفر
A10: =B10*C10 -> 80102 | B10: =COUNTIF('D1'!A:A,C10) -> 1 | C10: =D10+(G10*F10) -> 80102 | D10: =E7 -> 080102 | F10: 1e-08 | G10: 1 | I10: =VLOOKUP(A10,AnalizDB,10,0) -> 1 | J10: =VLOOKUP(A10,AnalizDB,7,0) -> مباشر عملیات خاکی با سابقه بیش از 10 سال | K10: =VLOOKUP(A10,AnalizDB,6,0) -> نفر- ساعت | L10: =VLOOKUP(A10,AnalizDB,5,0) -> 0.00889 | M10: =IF($T$5="نت",+VLOOKUP(MID(J10,1,60)&RIGHT(J10,60)&K10,ManabehDB,4,0),IF($T$5="آمار",+VLOOKUP(MID(J10,1,60)&RIGHT(J10,60)&K10,ManabehDB,5,0),+VLOOKUP(MID(J10,1,60)&RIGHT(J10,60)&K10,ManabehDB,6,0))) -> 111996 | N10: =IF($Q$5=$Q$2,VLOOKUP(A10,AnalizDB,2,0),IF($Q$5=$Q$3,VLOOKUP(A10,AnalizDB,3,0),VLOOKUP(A10,AnalizDB,4,0))) -> 1.353852348 | O10: =IFERROR(N10*M10*L10,0) -> 1347.955563 | R10: =IFERROR(VLOOKUP(MID(J10,1,60)&RIGHT(J10,60)&K10,ManabehDB,4,0)*L10*S10,0) -> 1224.642661 | S10: =VLOOKUP(A10,AnalizDB,2,0) -> 1.23 | T10: =$R$114*S10 -> 1.230774862 | U10: =$U$6*T10 -> 1.353852348 | V10: =IFERROR(VLOOKUP(MID(J10,1,60)&RIGHT(J10,60),ManabehDB,4,0)*L10*T10,0) -> 0
A11: 80102 | B11: =COUNTIF('D1'!A:A,C11) -> 1 | C11: 80102 | D11: =D10 -> 080102 | F11: =F10 -> 1e-08 | G11: =G10+1 -> 2 | I11: 2 | J11: =VLOOKUP(A11,AnalizDB,7,0) -> کارگر نقشه‌برداري (ميرکش) | K11: نفر- ساعت | L11: 0.04 | M11: 45844 | N11: 1.353852348 | O11: =IFERROR(N11*M11*L11,0) -> 2482.640281 | R11: 2255.5248 | S11: 1.23 | T11: =$R$114*S11 -> 1.230774862 | U11: 1.353852348 | V11: 0
A12: 80102 | B12: =COUNTIF('D1'!A:A,C12) -> 1 | C12: 80102 | D12: 080102 | F12: 1e-08 | G12: 3 | I12: 3 | J12: متصدی کمپرسور | K12: نفر - ساعت | L12: 0.2119 | M12: 49200 | N12: 1.26579691 | O12: =IFERROR(N12*M12*L12,0) -> 13196.54037 | R12: 11989.302 | S12: 1.15 | T12: 1.150724464 | U12: 1.26579691 | V12: 0
A13: 80102 | B13: =COUNTIF('D1'!A:A,C13) -> 1 | C13: 80102 | D13: 080102 | F13: 1e-08 | G13: 4 | I13: 4 | J13: كارگر ساده | K13: نفر- ساعت | L13: 1.4666 | M13: 40380 | N13: 1.26579691 | O13: 74962.1487 | R13: 68104.5042 | S13: 1.15 | T13: 1.150724464 | U13: 1.26579691 | V13: 0
A14: 80102 | B14: =COUNTIF('D1'!A:A,C14) -> 1 | C14: 80102 | D14: 080102 | F14: 1e-08 | G14: 5 | I14: 5 | J14: چکش گیر (مینور) | K14: نفر- ساعت | L14: 0.4242 | M14: 51914 | N14: 1.26579691 | O14: 27875.27678 | R14: 25325.20662 | S14: 1.15 | T14: 1.150724464 | U14: 1.26579691 | V14: 0
A15: 0 | B15: =COUNTIF('D1'!A:A,C15) -> 0 | C15: 80102 | D15: 080102 | F15: 1e-08 | G15: 6 | I15: 0 | J15: 0 | K15: 0 | L15: 0 | N15: 0 | O15: 0 | R15: 0 | S15: 0 | T15: 0 | U15: 0 | V15: 0
A16: 0 | B16: =COUNTIF('D1'!A:A,C16) -> 0 | C16: 80102 | D16: 080102 | F16: 1e-08 | G16: 7 | I16: 0 | J16: 0 | K16: 0 | L16: 0 | N16: 0 | O16: 0 | R16: 0 | S16: 0 | T16: 0 | U16: 0 | V16: 0
A17: 0 | B17: =COUNTIF('D1'!A:A,C17) -> 0 | C17: 80102 | D17: 080102 | F17: 1e-08 | G17: 8 | I17: 0 | J17: 0 | K17: 0 | L17: 0 | N17: 0 | O17: 0 | R17: 0 | S17: 0 | T17: 0 | U17: 0 | V17: 0
A18: 0 | B18: =COUNTIF('D1'!A:A,C18) -> 0 | C18: 80102 | D18: 080102 | F18: 1e-08 | G18: 9 | I18: 0 | J18: 0 | K18: 0 | L18: 0 | N18: 0 | O18: 0 | R18: 0 | S18: 0 | T18: 0 | U18: 0 | V18: 0
A19: 0 | B19: =COUNTIF('D1'!A:A,C19) -> 0 | C19: 80102 | D19: 080102 | F19: 1e-08 | G19: 10 | I19: 0 | J19: 0 | K19: 0 | L19: 0 | N19: 0 | O19: 0 | R19: 0 | S19: 0 | T19: 0 | U19: 0 | V19: 0
A20: 0 | B20: =COUNTIF('D1'!A:A,C20) -> 0 | C20: 80102 | D20: 080102 | F20: 1e-08 | G20: 11 | I20: 0 | J20: 0 | K20: 0 | L20: 0 | N20: 0 | O20: 0 | R20: 0 | S20: 0 | T20: 0 | U20: 0 | V20: 0
A21: 0 | B21: =COUNTIF('D1'!A:A,C21) -> 0 | C21: 80102 | D21: 080102 | F21: 1e-08 | G21: 12 | I21: 0 | J21: 0 | K21: 0 | L21: 0 | N21: 0 | O21: 0 | R21: 0 | S21: 0 | T21: 0 | U21: 0 | V21: 0
A22: 0 | B22: =COUNTIF('D1'!A:A,C22) -> 0 | C22: 80102 | D22: 080102 | F22: 1e-08 | G22: 13 | I22: 0 | J22: 0 | K22: 0 | L22: 0 | N22: 0 | O22: 0 | R22: 0 | S22: 0 | T22: 0 | U22: 0 | V22: 0
A23: 0 | B23: =COUNTIF('D1'!A:A,C23) -> 0 | C23: 80102 | D23: 080102 | F23: 1e-08 | G23: 14 | I23: 0 | J23: 0 | K23: 0 | L23: 0 | N23: 0 | O23: 0 | R23: 0 | S23: 0 | T23: 0 | U23: 0 | V23: 0
A24: 0 | B24: =COUNTIF('D1'!A:A,C24) -> 0 | C24: 80102 | D24: 080102 | F24: 1e-08 | G24: 15 | I24: 0 | J24: 0 | K24: 0 | L24: 0 | N24: 0 | O24: 0 | R24: 0 | S24: 0 | T24: 0 | U24: 0 | V24: 0
A25: 0 | B25: =COUNTIF('D1'!A:A,C25) -> 0 | C25: 80102 | D25: 080102 | F25: 1e-08 | G25: 16 | I25: 0 | J25: 0 | K25: 0 | L25: 0 | N25: 0 | O25: 0 | R25: 0 | S25: 0 | T25: 0 | U25: 0 | V25: 0
A26: 0 | B26: =COUNTIF('D1'!A:A,C26) -> 0 | C26: 80102 | D26: 080102 | F26: 1e-08 | G26: 17 | I26: 0 | J26: 0 | K26: 0 | L26: 0 | N26: 0 | O26: 0 | R26: 0 | S26: 0 | T26: 0 | U26: 0 | V26: 0
A27: 0 | B27: =COUNTIF('D1'!A:A,C27) -> 0 | C27: 80102 | D27: 080102 | F27: 1e-08 | G27: 18 | I27: 0 | J27: 0 | K27: 0 | L27: 0 | N27: 0 | O27: 0 | R27: 0 | S27: 0 | T27: 0 | U27: 0 | V27: 0
A28: 0 | B28: =COUNTIF('D1'!A:A,C28) -> 0 | C28: 80102 | D28: 080102 | F28: 1e-08 | G28: 19 | I28: 0 | J28: 0 | K28: 0 | L28: 0 | N28: 0 | O28: 0 | R28: 0 | S28: 0 | T28: 0 | U28: 0 | V28: 0
A29: 0 | B29: =COUNTIF('D1'!A:A,C29) -> 0 | C29: 80102 | D29: 080102 | F29: 1e-08 | G29: 20 | I29: 0 | J29: 0 | K29: 0 | L29: 0 | N29: 0 | O29: 0 | R29: 0 | S29: 0 | T29: 0 | U29: 0 | V29: 0
A30: 0 | B30: =COUNTIF('D1'!A:A,C30) -> 0 | C30: 80102 | D30: 080102 | F30: 1e-08 | G30: 21 | I30: 0 | J30: 0 | K30: 0 | L30: 0 | N30: 0 | O30: 0 | R30: 0 | S30: 0 | T30: 0 | U30: 0 | V30: 0
A31: 0 | B31: =COUNTIF('D1'!A:A,C31) -> 0 | C31: 80102 | D31: 080102 | F31: 1e-08 | G31: 22 | I31: 0 | J31: 0 | K31: 0 | L31: 0 | N31: 0 | O31: 0 | R31: 0 | S31: 0 | T31: 0 | U31: 0 | V31: 0
A32: 0 | B32: =COUNTIF('D1'!A:A,C32) -> 0 | C32: 80102 | D32: 080102 | F32: 1e-08 | G32: 23 | I32: 0 | J32: 0 | K32: 0 | L32: 0 | N32: 0 | O32: 0 | R32: 0 | S32: 0 | T32: 0 | U32: 0 | V32: 0
A33: 0 | B33: =COUNTIF('D1'!A:A,C33) -> 0 | C33: 80102 | D33: 080102 | F33: 1e-08 | G33: 24 | I33: 0 | J33: 0 | K33: 0 | L33: 0 | N33: 0 | O33: 0 | R33: 0 | S33: 0 | T33: 0 | U33: 0 | V33: 0
A34: 0 | B34: =COUNTIF('D1'!A:A,C34) -> 0 | C34: 80102 | D34: 080102 | F34: 1e-08 | G34: 25 | I34: 0 | J34: 0 | K34: 0 | L34: 0 | N34: 0 | O34: 0 | R34: 0 | S34: 0 | T34: 0 | U34: 0 | V34: 0
B35: =B9 -> 2 | I35: درصد وزنی | K35: =IFERROR(O35/O112,0) -> 0.9558577488 | M35: جمع نيروي انساني | O35: =SUM(O10:O34) -> 119864.5617 | T35: 0 | U35: 0 | V35: 0
B36: =IF(I37>0,2,0) -> 2 | I36: رديف | J36: ماشين آلات | K36: واحد | L36: مقدار | M36: بهاي واحد | N36: ضريب | O36: بهاي کل | T36: 0 | U36: 0
A37: =B37*C37 -> 80102 | B37: =COUNTIF('D1'!A:A,C37) -> 1 | C37: =D37+(G37*F37) -> 80102 | D37: =D29 -> 080102 | F37: 1e-06 | G37: 1 | I37: =VLOOKUP(A37,AnalizDB,10,0) -> 1 | J37: =VLOOKUP(A37,AnalizDB,7,0) -> بیل مکانیکی چرخ لاستیکی یازنجیری به قدرت حدود80 اسب بخار با راننده | K37: =VLOOKUP(A37,AnalizDB,6,0) -> دستگاه ساعت | L37: =VLOOKUP(A37,AnalizDB,5,0) -> -0.04 | M37: =IF($T$5="نت",+VLOOKUP(MID(J37,1,60)&RIGHT(J37,60)&K37,ManabehDB,4,0),IF($T$5="آمار",+VLOOKUP(MID(J37,1,60)&RIGHT(J37,60)&K37,ManabehDB,5,0),+VLOOKUP(MID(J37,1,60)&RIGHT(J37,60)&K37,ManabehDB,6,0))) -> 327724 | N37: =IF($Q$5=$Q$2,VLOOKUP(A37,AnalizDB,2,0),IF($Q$5=$Q$3,VLOOKUP(A37,AnalizDB,3,0),VLOOKUP(A37,AnalizDB,4,0))) -> 1.353852348 | O37: =IFERROR(N37*M37*L37,0) -> -17747.59627 | R37: =IFERROR(VLOOKUP(MID(J37,1,60)&RIGHT(J37,60)&K37,ManabehDB,4,0)*L37*S37,0) -> -16124.0208 | S37: =VLOOKUP(A37,AnalizDB,2,0) -> 1.23 | T37: 1.230774862 | U37: 1.353852348 | V37: =IFERROR(VLOOKUP(MID(J37,1,60)&RIGHT(J37,60),ManabehDB,4,0)*L37*T37,0) -> 0
A38: 80102 | B38: =COUNTIF('D1'!A:A,C38) -> 1 | C38: 80102 | D38: =D37 -> 080102 | F38: =F37 -> 1e-06 | G38: =G37+1 -> 2 | I38: 2 | J38: چکش دج بر 32 کیلوگرم | K38: دستگاه ساعت | L38: 0.2119 | M38: 8542 | N38: 1.26579691 | O38: 2291.155445 | R38: 2081.55727 | S38: 1.15 | T38: 1.150724464 | U38: 1.26579691 | V38: 0
A39: 80102 | B39: =COUNTIF('D1'!A:A,C39) -> 1 | C39: 80102 | D39: 080102 | F39: 1e-06 | G39: 3 | I39: 3 | J39: کمپرسور باظرفیت حدود 5 متر مکعب دردقیقه (180 سی اف ام) با شیلنگ مربوط | K39: دستگاه-ساعت | L39: 0.2119 | M39: 76609 | N39: 1.26579691 | O39: 20548.24719 | R39: 18668.46417 | S39: 1.15 | T39: 1.150724464 | U39: 1.26579691 | V39: 0
A40: 80102 | B40: =COUNTIF('D1'!A:A,C40) -> 1 | C40: 80102 | D40: 080102 | F40: 1e-06 | G40: 4 | I40: 4 | J40: بیل | K40: عدد | L40: 0.0018 | M40: 87183 | N40: 1.26579691 | O40: 198.6407497 | R40: 180.46881 | S40: 1.15 | T40: 1.150724464 | U40: 1.26579691 | V40: 0
A41: 80102 | B41: =COUNTIF('D1'!A:A,C41) -> 1 | C41: 80102 | D41: 080102 | F41: 1e-06 | G41: 5 | I41: 5 | J41: کلنگ دو سر | K41: عدد | L41: 0.00148 | M41: 130775 | N41: 1.26579691 | O41: 244.9911946 | R41: 222.57905 | S41: 1.15 | T41: 1.150724464 | U41: 1.26579691 | V41: 0
A42: 0 | B42: =COUNTIF('D1'!A:A,C42) -> 0 | C42: 80102.00001 | D42: 080102 | F42: 1e-06 | G42: 6 | I42: 0 | J42: 0 | K42: 0 | L42: 0 | N42: 0 | O42: 0 | R42: 0 | S42: 0 | T42: =$R$114*S42 -> 0 | U42: =$U$6*T42 -> 0 | V42: 0
A43: 0 | B43: =COUNTIF('D1'!A:A,C43) -> 0 | C43: 80102.00001 | D43: 080102 | F43: 1e-06 | G43: 7 | I43: 0 | J43: 0 | K43: 0 | L43: 0 | N43: 0 | O43: 0 | R43: 0 | S43: 0 | T43: 0 | U43: 0 | V43: 0
A44: 0 | B44: =COUNTIF('D1'!A:A,C44) -> 0 | C44: 80102.00001 | D44: 080102 | F44: 1e-06 | G44: 8 | I44: 0 | J44: 0 | K44: 0 | L44: 0 | N44: 0 | O44: 0 | R44: 0 | S44: 0 | T44: 0 | U44: 0 | V44: 0
A45: 0 | B45: =COUNTIF('D1'!A:A,C45) -> 0 | C45: 80102.00001 | D45: 080102 | F45: 1e-06 | G45: 9 | I45: 0 | J45: 0 | K45: 0 | L45: 0 | N45: 0 | O45: 0 | R45: 0 | S45: 0 | T45: 0 | U45: 0 | V45: 0
A46: 0 | B46: =COUNTIF('D1'!A:A,C46) -> 0 | C46: 80102.00001 | D46: 080102 | F46: 1e-06 | G46: 10 | I46: 0 | J46: 0 | K46: 0 | L46: 0 | N46: 0 | O46: 0 | R46: 0 | S46: 0 | T46: 0 | U46: 0 | V46: 0
A47: 0 | B47: =COUNTIF('D1'!A:A,C47) -> 0 | C47: 80102.00001 | D47: 080102 | F47: 1e-06 | G47: 11 | I47: 0 | J47: 0 | K47: 0 | L47: 0 | N47: 0 | O47: 0 | R47: 0 | S47: 0 | T47: 0 | U47: 0 | V47: 0
A48: 0 | B48: =COUNTIF('D1'!A:A,C48) -> 0 | C48: 80102.00001 | D48: 080102 | F48: 1e-06 | G48: 12 | I48: 0 | J48: 0 | K48: 0 | L48: 0 | N48: 0 | O48: 0 | R48: 0 | S48: 0 | T48: 0 | U48: 0 | V48: 0
A49: 0 | B49: =COUNTIF('D1'!A:A,C49) -> 0 | C49: 80102.00001 | D49: 080102 | F49: 1e-06 | G49: 13 | I49: 0 | J49: 0 | K49: 0 | L49: 0 | N49: 0 | O49: 0 | R49: 0 | S49: 0 | T49: 0 | U49: 0 | V49: 0
A50: 0 | B50: =COUNTIF('D1'!A:A,C50) -> 0 | C50: 80102.00001 | D50: 080102 | F50: 1e-06 | G50: 14 | I50: 0 | J50: 0 | K50: 0 | L50: 0 | N50: 0 | O50: 0 | R50: 0 | S50: 0 | T50: 0 | U50: 0 | V50: 0
A51: 0 | B51: =COUNTIF('D1'!A:A,C51) -> 0 | C51: 80102.00001 | D51: 080102 | F51: 1e-06 | G51: 15 | I51: 0 | J51: 0 | K51: 0 | L51: 0 | N51: 0 | O51: 0 | R51: 0 | S51: 0 | T51: 0 | U51: 0 | V51: 0
A52: 0 | B52: =COUNTIF('D1'!A:A,C52) -> 0 | C52: 80102.00002 | D52: 080102 | F52: 1e-06 | G52: 16 | I52: 0 | J52: 0 | K52: 0 | L52: 0 | N52: 0 | O52: 0 | R52: 0 | S52: 0 | T52: 0 | U52: 0 | V52: 0
A53: 0 | B53: =COUNTIF('D1'!A:A,C53) -> 0 | C53: 80102.00002 | D53: 080102 | F53: 1e-06 | G53: 17 | I53: 0 | J53: 0 | K53: 0 | L53: 0 | N53: 0 | O53: 0 | R53: 0 | S53: 0 | T53: 0 | U53: 0 | V53: 0
A54: 0 | B54: =COUNTIF('D1'!A:A,C54) -> 0 | C54: 80102.00002 | D54: 080102 | F54: 1e-06 | G54: 18 | I54: 0 | J54: 0 | K54: 0 | L54: 0 | N54: 0 | O54: 0 | R54: 0 | S54: 0 | T54: 0 | U54: 0 | V54: 0
A55: 0 | B55: =COUNTIF('D1'!A:A,C55) -> 0 | C55: 80102.00002 | D55: 080102 | F55: 1e-06 | G55: 19 | I55: 0 | J55: 0 | K55: 0 | L55: 0 | N55: 0 | O55: 0 | R55: 0 | S55: 0 | T55: 0 | U55: 0 | V55: 0
A56: 0 | B56: =COUNTIF('D1'!A:A,C56) -> 0 | C56: 80102.00002 | D56: 080102 | F56: 1e-06 | G56: 20 | I56: 0 | J56: 0 | K56: 0 | L56: 0 | N56: 0 | O56: 0 | R56: 0 | S56: 0 | T56: 0 | U56: 0 | V56: 0
A57: 0 | B57: =COUNTIF('D1'!A:A,C57) -> 0 | C57: 80102.00002 | D57: 080102 | F57: 1e-06 | G57: 21 | I57: 0 | J57: 0 | K57: 0 | L57: 0 | N57: 0 | O57: 0 | R57: 0 | S57: 0 | T57: 0 | U57: 0 | V57: 0
A58: 0 | B58: =COUNTIF('D1'!A:A,C58) -> 0 | C58: 80102.00002 | D58: 080102 | F58: 1e-06 | G58: 22 | I58: 0 | J58: 0 | K58: 0 | L58: 0 | N58: 0 | O58: 0 | R58: 0 | S58: 0 | T58: 0 | U58: 0 | V58: 0
A59: 0 | B59: =COUNTIF('D1'!A:A,C59) -> 0 | C59: 80102.00002 | D59: 080102 | F59: 1e-06 | G59: 23 | I59: 0 | J59: 0 | K59: 0 | L59: 0 | N59: 0 | O59: 0 | R59: 0 | S59: 0 | T59: 0 | U59: 0 | V59: 0
A60: 0 | B60: =COUNTIF('D1'!A:A,C60) -> 0 | C60: 80102.00002 | D60: 080102 | F60: 1e-06 | G60: 24 | I60: 0 | J60: 0 | K60: 0 | L60: 0 | N60: 0 | O60: 0 | R60: 0 | S60: 0 | T60: 0 | U60: 0 | V60: 0
A61: 0 | B61: =COUNTIF('D1'!A:A,C61) -> 0 | C61: 80102.00003 | D61: 080102 | F61: 1e-06 | G61: 25 | I61: 0 | J61: 0 | K61: 0 | L61: 0 | N61: 0 | O61: 0 | R61: 0 | S61: 0 | T61: 0 | U61: 0 | V61: 0
B62: =B36 -> 2 | I62: درصد وزنی | K62: =IFERROR(O62/O112,0) -> 0.04414225121 | M62: جمع ماشين آلات | O62: =SUM(O37:O61) -> 5535.438302 | T62: 0 | U62: 0
B63: =IF(I64>0,2,0) -> 0 | I63: رديف | J63: مصالح | K63: واحد | L63: مقدار | M63: بهاي واحد | N63: ضريب | O63: بهاي کل | T63: 0 | U63: 0
A64: =B64*C64 -> 0 | B64: =COUNTIF('D1'!A:A,C64) -> 0 | C64: =D64+(G64*F64) -> 80102.0001 | D64: =D55 -> 080102 | F64: 0.0001 | G64: 1 | I64: =VLOOKUP(A64,AnalizDB,10,0) -> 0 | J64: =VLOOKUP(A64,AnalizDB,7,0) -> 0 | K64: =VLOOKUP(A64,AnalizDB,6,0) -> 0 | L64: =VLOOKUP(A64,AnalizDB,5,0) -> 0 | M64: =IF($T$5="نت",+VLOOKUP(MID(J64,1,60)&RIGHT(J64,60)&K64,ManabehDB,4,0),IF($T$5="آمار",+VLOOKUP(MID(J64,1,60)&RIGHT(J64,60)&K64,ManabehDB,5,0),+VLOOKUP(MID(J64,1,60)&RIGHT(J64,60)&K64,ManabehDB,6,0))) ->  | N64: =IF($Q$5=$Q$2,VLOOKUP(A64,AnalizDB,2,0),IF($Q$5=$Q$3,VLOOKUP(A64,AnalizDB,3,0),VLOOKUP(A64,AnalizDB,4,0))) -> 0 | O64: =IFERROR(N64*M64*L64,0) -> 0 | R64: =IFERROR(VLOOKUP(MID(J64,1,60)&RIGHT(J64,60)&K64,ManabehDB,4,0)*L64*S64,0) -> 0 | S64: =VLOOKUP(A64,AnalizDB,2,0) -> 0 | T64: 0 | U64: 0 | V64: =IFERROR(VLOOKUP(MID(J64,1,60)&RIGHT(J64,60),ManabehDB,4,0)*L64*T64,0) -> 0
A65: 0 | B65: =COUNTIF('D1'!A:A,C65) -> 0 | C65: 80102.0002 | D65: =D64 -> 080102 | F65: =F64 -> 0.0001 | G65: =G64+1 -> 2 | I65: 0 | J65: =VLOOKUP(A65,AnalizDB,7,0) -> 0 | K65: 0 | L65: 0 | N65: 0 | O65: 0 | R65: 0 | S65: 0 | T65: 0 | U65: 0 | V65: 0
A66: 0 | B66: =COUNTIF('D1'!A:A,C66) -> 0 | C66: 80102.0003 | D66: 080102 | F66: 0.0001 | G66: 3 | I66: 0 | J66: 0 | K66: 0 | L66: 0 | N66: 0 | O66: 0 | R66: 0 | S66: 0 | T66: 0 | U66: 0 | V66: 0
A67: 0 | B67: =COUNTIF('D1'!A:A,C67) -> 0 | C67: 80102.0004 | D67: 080102 | F67: 0.0001 | G67: 4 | I67: 0 | J67: 0 | K67: 0 | L67: 0 | N67: 0 | O67: 0 | R67: 0 | S67: 0 | T67: 0 | U67: 0 | V67: 0
A68: 0 | B68: =COUNTIF('D1'!A:A,C68) -> 0 | C68: 80102.0005 | D68: 080102 | F68: 0.0001 | G68: 5 | I68: 0 | J68: 0 | K68: 0 | L68: 0 | N68: 0 | O68: 0 | R68: 0 | S68: 0 | T68: 0 | U68: 0 | V68: 0
A69: 0 | B69: =COUNTIF('D1'!A:A,C69) -> 0 | C69: 80102.0006 | D69: 080102 | F69: 0.0001 | G69: 6 | I69: 0 | J69: 0 | K69: 0 | L69: 0 | N69: 0 | O69: 0 | R69: 0 | S69: 0 | T69: 0 | U69: 0 | V69: 0
A70: 0 | B70: =COUNTIF('D1'!A:A,C70) -> 0 | C70: 80102.0007 | D70: 080102 | F70: 0.0001 | G70: 7 | I70: 0 | J70: 0 | K70: 0 | L70: 0 | N70: 0 | O70: 0 | R70: 0 | S70: 0 | T70: 0 | U70: 0 | V70: 0
A71: 0 | B71: =COUNTIF('D1'!A:A,C71) -> 0 | C71: 80102.0008 | D71: 080102 | F71: 0.0001 | G71: 8 | I71: 0 | J71: 0 | K71: 0 | L71: 0 | N71: 0 | O71: 0 | R71: 0 | S71: 0 | T71: 0 | U71: 0 | V71: 0
A72: 0 | B72: =COUNTIF('D1'!A:A,C72) -> 0 | C72: 80102.0009 | D72: 080102 | F72: 0.0001 | G72: 9 | I72: 0 | J72: 0 | K72: 0 | L72: 0 | N72: 0 | O72: 0 | R72: 0 | S72: 0 | T72: 0 | U72: 0 | V72: 0
A73: 0 | B73: =COUNTIF('D1'!A:A,C73) -> 0 | C73: 80102.001 | D73: 080102 | F73: 0.0001 | G73: 10 | I73: 0 | J73: 0 | K73: 0 | L73: 0 | N73: 0 | O73: 0 | R73: 0 | S73: 0 | T73: 0 | U73: 0 | V73: 0
A74: 0 | B74: =COUNTIF('D1'!A:A,C74) -> 0 | C74: 80102.0011 | D74: 080102 | F74: 0.0001 | G74: 11 | I74: 0 | J74: 0 | K74: 0 | L74: 0 | N74: 0 | O74: 0 | R74: 0 | S74: 0 | T74: =$R$114*S74 -> 0 | U74: =$U$6*T74 -> 0 | V74: 0
A75: 0 | B75: =COUNTIF('D1'!A:A,C75) -> 0 | C75: 80102.0012 | D75: 080102 | F75: 0.0001 | G75: 12 | I75: 0 | J75: 0 | K75: 0 | L75: 0 | N75: 0 | O75: 0 | R75: 0 | S75: 0 | T75: 0 | U75: 0 | V75: 0
A76: 0 | B76: =COUNTIF('D1'!A:A,C76) -> 0 | C76: 80102.0013 | D76: 080102 | F76: 0.0001 | G76: 13 | I76: 0 | J76: 0 | K76: 0 | L76: 0 | N76: 0 | O76: 0 | R76: 0 | S76: 0 | T76: 0 | U76: 0 | V76: 0
A77: 0 | B77: =COUNTIF('D1'!A:A,C77) -> 0 | C77: 80102.0014 | D77: 080102 | F77: 0.0001 | G77: 14 | I77: 0 | J77: 0 | K77: 0 | L77: 0 | N77: 0 | O77: 0 | R77: 0 | S77: 0 | T77: 0 | U77: 0 | V77: 0
A78: 0 | B78: =COUNTIF('D1'!A:A,C78) -> 0 | C78: 80102.0015 | D78: 080102 | F78: 0.0001 | G78: 15 | I78: 0 | J78: 0 | K78: 0 | L78: 0 | N78: 0 | O78: 0 | R78: 0 | S78: 0 | T78: 0 | U78: 0 | V78: 0
A79: 0 | B79: =COUNTIF('D1'!A:A,C79) -> 0 | C79: 80102.0016 | D79: 080102 | F79: 0.0001 | G79: 16 | I79: 0 | J79: 0 | K79: 0 | L79: 0 | N79: 0 | O79: 0 | R79: 0 | S79: 0 | T79: 0 | U79: 0 | V79: 0
A80: 0 | B80: =COUNTIF('D1'!A:A,C80) -> 0 | C80: 80102.0017 | D80: 080102 | F80: 0.0001 | G80: 17 | I80: 0 | J80: 0 | K80: 0 | L80: 0 | N80: 0 | O80: 0 | R80: 0 | S80: 0 | T80: 0 | U80: 0 | V80: 0
A81: 0 | B81: =COUNTIF('D1'!A:A,C81) -> 0 | C81: 80102.0018 | D81: 080102 | F81: 0.0001 | G81: 18 | I81: 0 | J81: 0 | K81: 0 | L81: 0 | N81: 0 | O81: 0 | R81: 0 | S81: 0 | T81: 0 | U81: 0 | V81: 0
A82: 0 | B82: =COUNTIF('D1'!A:A,C82) -> 0 | C82: 80102.0019 | D82: 080102 | F82: 0.0001 | G82: 19 | I82: 0 | J82: 0 | K82: 0 | L82: 0 | N82: 0 | O82: 0 | R82: 0 | S82: 0 | T82: 0 | U82: 0 | V82: 0
A83: 0 | B83: =COUNTIF('D1'!A:A,C83) -> 0 | C83: 80102.002 | D83: 080102 | F83: 0.0001 | G83: 20 | I83: 0 | J83: 0 | K83: 0 | L83: 0 | N83: 0 | O83: 0 | R83: 0 | S83: 0 | T83: 0 | U83: 0 | V83: 0
A84: 0 | B84: =COUNTIF('D1'!A:A,C84) -> 0 | C84: 80102.0021 | D84: 080102 | F84: 0.0001 | G84: 21 | I84: 0 | J84: 0 | K84: 0 | L84: 0 | N84: 0 | O84: 0 | R84: 0 | S84: 0 | T84: 0 | U84: 0 | V84: 0
A85: 0 | B85: =COUNTIF('D1'!A:A,C85) -> 0 | C85: 80102.0022 | D85: 080102 | F85: 0.0001 | G85: 22 | I85: 0 | J85: 0 | K85: 0 | L85: 0 | N85: 0 | O85: 0 | R85: 0 | S85: 0 | T85: 0 | U85: 0 | V85: 0
A86: 0 | B86: =COUNTIF('D1'!A:A,C86) -> 0 | C86: 80102.0023 | D86: 080102 | F86: 0.0001 | G86: 23 | I86: 0 | J86: 0 | K86: 0 | L86: 0 | N86: 0 | O86: 0 | R86: 0 | S86: 0 | T86: 0 | U86: 0 | V86: 0
A87: 0 | B87: =COUNTIF('D1'!A:A,C87) -> 0 | C87: 80102.0024 | D87: 080102 | F87: 0.0001 | G87: 24 | I87: 0 | J87: 0 | K87: 0 | L87: 0 | N87: 0 | O87: 0 | R87: 0 | S87: 0 | T87: 0 | U87: 0 | V87: 0
A88: 0 | B88: =COUNTIF('D1'!A:A,C88) -> 0 | C88: 80102.0025 | D88: 080102 | F88: 0.0001 | G88: 25 | I88: 0 | J88: 0 | K88: 0 | L88: 0 | N88: 0 | O88: 0 | R88: 0 | S88: 0 | T88: 0 | U88: 0 | V88: 0
B89: =B63 -> 0 | I89: درصد وزنی | K89: =IFERROR(O89/O112,0) -> 0 | M89: جمع مصالح | O89: =SUM(O64:O88) -> 0 | T89: 0 | U89: 0 | V89: 0
B90: =IF(I91>0,2,0) -> 0 | I90: رديف | J90: حمل مصالح | K90: واحد | L90: مقدار | M90: بهاي واحد | N90: ضريب | O90: بهاي کل | T90: 0 | U90: 0
A91: =B91*C91 -> 0 | B91: =COUNTIF('D1'!A:A,C91) -> 0 | C91: =D91+(G91*F91) -> 80102.01 | D91: =D83 -> 080102 | F91: 0.01 | G91: 1 | I91: =VLOOKUP(A91,AnalizDB,10,0) -> 0 | J91: =VLOOKUP(A91,AnalizDB,7,0) -> 0 | K91: =VLOOKUP(A91,AnalizDB,6,0) -> 0 | L91: =VLOOKUP(A91,AnalizDB,5,0) -> 0 | M91: =IF($T$5="نت",+VLOOKUP(MID(J91,1,60)&RIGHT(J91,60)&K91,ManabehDB,4,0),IF($T$5="آمار",+VLOOKUP(MID(J91,1,60)&RIGHT(J91,60)&K91,ManabehDB,5,0),+VLOOKUP(MID(J91,1,60)&RIGHT(J91,60)&K91,ManabehDB,6,0))) ->  | N91: =IF($Q$5=$Q$2,VLOOKUP(A91,AnalizDB,2,0),IF($Q$5=$Q$3,VLOOKUP(A91,AnalizDB,3,0),VLOOKUP(A91,AnalizDB,4,0))) -> 0 | O91: =IFERROR(N91*M91*L91,0) -> 0 | R91: =IFERROR(VLOOKUP(MID(J91,1,60)&RIGHT(J91,60)&K91,ManabehDB,4,0)*L91*S91,0) -> 0 | S91: =VLOOKUP(A91,AnalizDB,2,0) -> 0 | T91: 0 | U91: 0 | V91: =IFERROR(VLOOKUP(MID(J91,1,60)&RIGHT(J91,60),ManabehDB,4,0)*L91*T91,0) -> 0
A92: 0 | B92: =COUNTIF('D1'!A:A,C92) -> 0 | C92: 80102.02 | D92: =D91 -> 080102 | F92: =F91 -> 0.01 | G92: =G91+1 -> 2 | I92: 0 | J92: 0 | K92: 0 | L92: 0 | N92: 0 | O92: 0 | R92: 0 | S92: 0 | T92: 0 | U92: 0 | V92: 0
A93: 0 | B93: =COUNTIF('D1'!A:A,C93) -> 0 | C93: 80102.03 | D93: 080102 | F93: 0.01 | G93: 3 | I93: 0 | J93: 0 | K93: 0 | L93: 0 | N93: 0 | O93: 0 | R93: 0 | S93: 0 | T93: 0 | U93: 0 | V93: 0
A94: 0 | B94: =COUNTIF('D1'!A:A,C94) -> 0 | C94: 80102.04 | D94: 080102 | F94: 0.01 | G94: 4 | I94: 0 | J94: 0 | K94: 0 | L94: 0 | N94: 0 | O94: 0 | R94: 0 | S94: 0 | T94: 0 | U94: 0 | V94: 0
A95: 0 | B95: =COUNTIF('D1'!A:A,C95) -> 0 | C95: 80102.05 | D95: 080102 | F95: 0.01 | G95: 5 | I95: 0 | J95: 0 | K95: 0 | L95: 0 | N95: 0 | O95: 0 | R95: 0 | S95: 0 | T95: 0 | U95: 0 | V95: 0
A96: 0 | B96: =COUNTIF('D1'!A:A,C96) -> 0 | C96: 80102.06 | D96: 080102 | F96: 0.01 | G96: 6 | I96: 0 | J96: 0 | K96: 0 | L96: 0 | N96: 0 | O96: 0 | R96: 0 | S96: 0 | T96: 0 | U96: 0 | V96: 0
A97: 0 | B97: =COUNTIF('D1'!A:A,C97) -> 0 | C97: 80102.07 | D97: 080102 | F97: 0.01 | G97: 7 | I97: 0 | J97: 0 | K97: 0 | L97: 0 | N97: 0 | O97: 0 | R97: 0 | S97: 0 | T97: 0 | U97: 0 | V97: 0
A98: 0 | B98: =COUNTIF('D1'!A:A,C98) -> 0 | C98: 80102.08 | D98: 080102 | F98: 0.01 | G98: 8 | I98: 0 | J98: 0 | K98: 0 | L98: 0 | N98: 0 | O98: 0 | R98: 0 | S98: 0 | T98: 0 | U98: 0 | V98: 0
A99: 0 | B99: =COUNTIF('D1'!A:A,C99) -> 0 | C99: 80102.09 | D99: 080102 | F99: 0.01 | G99: 9 | I99: 0 | J99: 0 | K99: 0 | L99: 0 | N99: 0 | O99: 0 | R99: 0 | S99: 0 | T99: 0 | U99: 0 | V99: 0
A100: 0 | B100: =COUNTIF('D1'!A:A,C100) -> 0 | C100: 80102.1 | D100: 080102 | F100: 0.01 | G100: 10 | I100: 0 | J100: 0 | K100: 0 | L100: 0 | N100: 0 | O100: 0 | R100: 0 | S100: 0 | T100: 0 | U100: 0 | V100: 0
A101: 0 | B101: =COUNTIF('D1'!A:A,C101) -> 0 | C101: 80102.11 | D101: 080102 | F101: 0.01 | G101: 11 | I101: 0 | J101: 0 | K101: 0 | L101: 0 | N101: 0 | O101: 0 | R101: 0 | S101: 0 | T101: 0 | U101: 0 | V101: 0
A102: 0 | B102: =COUNTIF('D1'!A:A,C102) -> 0 | C102: 80102.12 | D102: 080102 | F102: 0.01 | G102: 12 | I102: 0 | J102: 0 | K102: 0 | L102: 0 | N102: 0 | O102: 0 | R102: 0 | S102: 0 | T102: 0 | U102: 0 | V102: 0
A103: 0 | B103: =COUNTIF('D1'!A:A,C103) -> 0 | C103: 80102.13 | D103: 080102 | F103: 0.01 | G103: 13 | I103: 0 | J103: 0 | K103: 0 | L103: 0 | N103: 0 | O103: 0 | R103: 0 | S103: 0 | T103: 0 | U103: 0 | V103: 0
A104: 0 | B104: =COUNTIF('D1'!A:A,C104) -> 0 | C104: 80102.14 | D104: 080102 | F104: 0.01 | G104: 14 | I104: 0 | J104: 0 | K104: 0 | L104: 0 | N104: 0 | O104: 0 | R104: 0 | S104: 0 | T104: 0 | U104: 0 | V104: 0
A105: 0 | B105: =COUNTIF('D1'!A:A,C105) -> 0 | C105: 80102.15 | D105: 080102 | F105: 0.01 | G105: 15 | I105: 0 | J105: 0 | K105: 0 | L105: 0 | N105: 0 | O105: 0 | R105: 0 | S105: 0 | T105: 0 | U105: 0 | V105: 0
A106: 0 | B106: =COUNTIF('D1'!A:A,C106) -> 0 | C106: 80102.16 | D106: 080102 | F106: 0.01 | G106: 16 | I106: 0 | J106: 0 | K106: 0 | L106: 0 | N106: 0 | O106: 0 | R106: 0 | S106: 0 | T106: =$R$114*S106 -> 0 | U106: =$U$6*T106 -> 0 | V106: 0
A107: 0 | B107: =COUNTIF('D1'!A:A,C107) -> 0 | C107: 80102.17 | D107: 080102 | F107: 0.01 | G107: 17 | I107: 0 | J107: 0 | K107: 0 | L107: 0 | N107: 0 | O107: 0 | R107: 0 | S107: 0 | T107: 0 | U107: 0 | V107: 0
A108: 0 | B108: =COUNTIF('D1'!A:A,C108) -> 0 | C108: 80102.18 | D108: 080102 | F108: 0.01 | G108: 18 | I108: 0 | J108: 0 | K108: 0 | L108: 0 | N108: 0 | O108: 0 | R108: 0 | S108: 0 | T108: 0 | U108: 0 | V108: 0
A109: 0 | B109: =COUNTIF('D1'!A:A,C109) -> 0 | C109: 80102.19 | D109: 080102 | F109: 0.01 | G109: 19 | I109: 0 | J109: 0 | K109: 0 | L109: 0 | N109: 0 | O109: 0 | R109: 0 | S109: 0 | T109: 0 | U109: 0 | V109: 0
A110: 0 | B110: =COUNTIF('D1'!A:A,C110) -> 0 | C110: 80102.2 | D110: 080102 | F110: 0.01 | G110: 20 | I110: 0 | J110: 0 | K110: 0 | L110: 0 | N110: 0 | O110: 0 | R110: 0 | S110: 0 | T110: 0 | U110: 0 | V110: 0
B111: =B90 -> 0 | I111: درصد وزنی | K111: =IFERROR(O111/O112,0) -> 0 | M111: جمع حمل مصالح | O111: =SUM(O91:O110) -> 0
B112: 2 | I112: شماره رديف يا رديفهاي معادل: | K112: =E7 -> 080102 | M112: بهاي واحد کار : | O112: =O111+O89+O62+O35 -> 125400 | Q112: قيمت آناليز | R112: =SUM(R10:R111) -> 113928.2288
B113: =B112 -> 2 | I113: جمع بهاي واحد رديف يا رديفهاي معادل: | K113: =VLOOKUP(E7,ItemMetreh,4,0) -> 114000 | L113: مقايسه پيشنهادنسبت به برآورد(درصد) | O113: =(O112/K113)-1 -> 0.1 | Q113: قيمت رديف | R113: =K113 -> 114000 | V113: =SUM(V10:V112) -> 0
B114: =B113 -> 2 | I114: بهای کل کار معادل : | K114: =VLOOKUP(E7,metreh,8,0)*K113 -> 4560000 | L114: بهای کل کار: | O114: =VLOOKUP(E7,metreh,8,0)*O112 -> 5016000 | R114: =R113/R112 -> 1.000629969
B115: =B114 -> 2 | I115: پ

Sheet D2 (hidden)
B1: فهرست بهای واحد پایه رشته شبکه توزیع آب رسته مهندسی آب سال 94 | F1: شماره فصل | G1: شرح فصل
A2: شماره | B2: شـرح فهرست بها | C2: واحـد | D2: بهاي واحد | F2: 2 | G2: فصل2. عملیات لوله گذاری با لوله های چدنی نشکن(داکتیل)
A3: 020101 | B3: لوله گذاري با لوله چدني نشکن، به قطرهاي 60 يا 80 ميليمتر و عمق ترانشه تا 1.5 متر. | C3: متر طول | D3: 180500 | F3: 3 | G3: فصل3. عملیات لوله گذاری با لوله های فایبرگلاس (G.R.P)
A4: 020102 | B4: لوله گذاري با لوله چدني نشکن، به قطر 100 ميليمتر و عمق ترانشه تا 1.5 متر. | C4: متر طول | D4: 183500 | F4: 4 | G4: فصل4. عملیات لوله گذاری با لوله های پلی اتیلن(P.E) و پی وی سی سخت (U.P.V.C)
A5: 080101 | B5: اضافه بها به رديفهاي فصلهاي لوله گذاري و احداث حوضچه هاو نصب انشعابها ، چنانچه براي حفر ترانشه و گود برداري در زمينهاي نرم و خاکريزي، استفاده از وسايل مکانيکي به علت موقعيت مکاني مقدور نباشد و عمليات خاکي با دست و حداکثر تا عمق 2 متر انجام شود، بر حسب حجم محل حفاري . | C5: مترمكعب | D5: 41300 | F5: 5 | G5: فصل5. نصب شیرها
A6: 080102 | B6: اضافه بها به رديفهاي فصلهاي لوله گذاري و احداث حوضچه ها و نصب انشعابها ، چنانچه براي حفر ترانشه و گود برداري در زمينهاي سخت و خاکريزي، استفاده از وسايل مکانيکي به علت موقعيت مکاني مقدور نباشد و عمليات خاکي با دست و حداکثر تا عمق 2 متر انجام شود، بر حسب حجم محل حفاري . | C6: مترمكعب | D6: 114000 | F6: 6 | G6: فصل6. احداث حوضچه های شیر
F7: 7 | G7: فصل7. نصب انشعابها
F8: 8 | G8: فصل8. عملیات خاکی و مرمت نوار حفاری
F9: 9 | G9: فصل9. کارهای فولادی
F10: 10 | G10: فصل10. کارهای بتنی و قالب بندی
F11: 11 | G11: فصل11. حمل و نقل
F12: 12 | G12: فصل12. تهیه لوله های چدنی نشکن (داکتیل)، اتصالی ها و متعلقات
F13: 13 | G13: فصل13. تهیه لوله های فایبر گلاس (G.R.P)، اتصالی ها و متعلقات
F14: 14 | G14: فصل14. تهیه لوله های پلی اتیلن و پی وی سی سخت ( U.P.V.C) ، اتصالی ها و متعلقات
F15: 41 | G15: فصل41. مصالح پایکار
F16: 42 | G16: فصل42. تجهیز و برچیدن کارگاه
A86: 080101 | B86: اضافه بها به رديفهاي فصلهاي لوله گذاري و احداث حوضچه هاو نصب انشعابها ، چنانچه براي حفر ترانشه و گود برداري در زمينهاي نرم و خاکريزي، استفاده از وسايل مکانيکي به علت موقعيت مکاني مقدور نباشد و عمليات خاکي با دست و حداکثر تا عمق 2 متر انجام شود، بر حسب حجم محل حفاري . | C86: مترمكعب | D86: 41300
A87: 080102 | B87: اضافه بها به رديفهاي فصلهاي لوله گذاري و احداث حوضچه ها و نصب انشعابها ، چنانچه براي حفر ترانشه و گود برداري در زمينهاي سخت و خاکريزي، استفاده از وسايل مکانيکي به علت موقعيت مکاني مقدور نباشد و عمليات خاکي با دست و حداکثر تا عمق 2 متر انجام شود، بر حسب حجم محل حفاري . | C87: مترمكعب | D87: 114000

Sheet D1 (hidden)
E1: نيروي انساني | F1: 1e-08
E2: ماشين آلات | F2: 1e-06
E3: مصالح | F3: 0.0001
E4: حمل مصالح | F4: 0.01
A8: 0 | H8: 020101 | K8: =H8 -> 020101 | L8: =IF(K8>0,K8,L6) -> 020101
G9: متر طول | I9: واحـد : | K9: 0 | L9: =IF(K9>0,K9,L8) -> 020101
B10: ضريب | E10: مقـدار | F10: واحــد | G10: نيروي انساني | I10: رديف | K10: 0 | L10: 020101 | M10: =IF(I10="رديف",VLOOKUP(G10,Kod,2,0),0) -> 1e-08 | N10: =IF(M10>0,M10,N9) -> 1e-08 | O10: =I10/I10 ->  | P10: =IF(O10>0,N10+L10,0) -> 
A11: =L11+(J11*N11) -> 20101 | B11: 1.1931 | E11: 0.051912 | F11: نفر- ساعت | G11: سرپرست عمليات لوله گذاري خطوط انتقال آب | I11: 1 | J11: =IF(O11>0,COUNTIF(P1:P11,L11+N11),0) -> 1 | K11: 0 | L11: 020101 | M11: 0 | N11: 1e-08 | O11: 1 | P11: 20101
A12: 20101 | B12: 1.1931 | E12: 0.008 | F12: نفر - ساعت | G12: کمک بنای بتن کار | I12: 2 | J12: =IF(O12>0,COUNTIF(P1:P12,L12+N12),0) -> 2 | K12: 0 | L12: 020101 | M12: 0 | N12: 1e-08 | O12: 1 | P12: 20101
A13: 20101 | B13: 1.1931 | E13: 0.0768 | F13: نفر ساعت | G13: کمک بنای سفت کار | I13: 3 | J13: =IF(O13>0,COUNTIF(P1:P13,L13+N13),0) -> 3 | K13: 0 | L13: 020101 | M13: 0 | N13: 1e-08 | O13: 1 | P13: 20101
A14: 20101 | B14: 1.1931 | E14: 0.105333 | F14: نفر- ساعت | G14: کمک لوله گذارلوله های چدنی نشکن داکتیل ولوله های فولادی اتصال مکانیکی | I14: 4 | J14: =IF(O14>0,COUNTIF(P1:P14,L14+N14),0) -> 4 | K14: 0 | L14: 020101 | M14: 0 | N14: 1e-08 | O14: 1 | P14: 20101
A15: 20101 | B15: 1.1931 | E15: 0.032 | F15: نفر- ساعت | G15: کمک نقشه بردار (ترازیاب) | I15: 5 | J15: =IF(O15>0,COUNTIF(P1:P15,L15+N15),0) -> 5 | K15: 0 | L15: 020101 | M15: 0 | N15: 1e-08 | O15: 1 | P15: 20101
A16: 20101 | B16: 1.1931 | E16: 0.113418 | F16: نفر- ساعت | G16: لوله گذاردرجه دولوله های چدنی نشکن داکتیل ولوله های فولادی اتصال مکانیکی | I16: 6 | J16: =IF(O16>0,COUNTIF(P1:P16,L16+N16),0) -> 6 | K16: 0 | L16: 020101 | M16: 0 | N16: 1e-08 | O16: 1 | P16: 20101
A17: 20101 | B17: 1.1931 | E17: 0.004038 | F17: نفر- ساعت | G17: لوله گذاردرجه یک لوله های چدنی نشکن داکتیل ولوله های فولادی اتصال مکانیکی | I17: 7 | J17: =IF(O17>0,COUNTIF(P1:P17,L17+N17),0) -> 7 | K17: 0 | L17: 020101 | M17: 0 | N17: 1e-08 | O17: 1 | P17: 20101
A18: 20101 | B18: 1.1931 | E18: 0.160937 | F18: نفر ساعت | G18: متصدی غلطکهای دستی | I18: 8 | J18: =IF(O18>0,COUNTIF(P1:P18,L18+N18),0) -> 8 | K18: 0 | L18: 020101 | M18: 0 | N18: 1e-08 | O18: 1 | P18: 20101
A19: 20101 | B19: 1.1931 | E19: 0.008 | F19: نفر ساعت | G19: نقشه بردار با سابقه بیش از 10 سال | I19: 9 | J19: =IF(O19>0,COUNTIF(P1:P19,L19+N19),0) -> 9 | K19: 0 | L19: 020101 | M19: 0 | N19: 1e-08 | O19: 1 | P19: 20101
A20: 20101 | B20: 1.1931 | E20: 0.0164 | F20: نفر- ساعت | G20: مباشر عملیات خاکی با سابقه بیش از 10 سال | I20: 10 | J20: =IF(O20>0,COUNTIF(P1:P20,L20+N20),0) -> 10 | K20: 0 | L20: 020101 | M20: 0 | N20: 1e-08 | O20: 1 | P20: 20101
A21: 20101 | B21: 1.1931 | E21: 0.097 | F21: نفر- ساعت | G21: کارگر نقشه‌برداري (ميرکش) | I21: 11 | J21: =IF(O21>0,COUNTIF(P1:P21,L21+N21),0) -> 11 | K21: 0 | L21: 020101 | M21: 0 | N21: 1e-08 | O21: 1 | P21: 20101
A22: 20101 | B22: 1.1931 | E22: 2.035691 | F22: نفر- ساعت | G22: كارگر ساده | I22: 12 | J22: =IF(O22>0,COUNTIF(P1:P22,L22+N22),0) -> 12 | K22: 0 | L22: 020101 | M22: 0 | N22: 1e-08 | O22: 1 | P22: 20101
B23: ضريب | E23: مقـدار | F23: واحــد | G23: ماشين آلات | I23: رديف | J23: =IF(O23>0,COUNTIF(P1:P23,L23+N23),0) ->  | K23: 0 | L23: 020101 | M23: 1e-06 | N23: 1e-06
A24: 20101 | B24: 1.1155 | E24: 0.045 | F24: دستگاه ساعت | G24: بیل مکانیکی چرخ لاستیکی یازنجیری به قدرت حدود80 اسب بخار با راننده | I24: 1 | J24: =IF(O24>0,COUNTIF(P1:P24,L24+N24),0) -> 1 | K24: 0 | L24: 020101 | M24: 0 | N24: 1e-06 | O24: 1 | P24: 20101
A25: 20101 | B25: 1.1155 | E25: 0.026357 | F25: دستگاه-ساعت | G25: تانکر آب پاش به ظرفيت حدود 5000 ليتر باراننده | I25: 2 | J25: =IF(O25>0,COUNTIF(P1:P25,L25+N25),0) -> 2 | K25: 0 | L25: 020101 | M25: 0 | N25: 1e-06 | O25: 1 | P25: 20101
A26: 20101 | B26: 1.1155 | E26: 0.0224 | F26: دستگاه ساعت | G26: تراکتور جفت دیفرانسیل با راننده | I26: 3 | J26: =IF(O26>0,COUNTIF(P1:P26,L26+N26),0) -> 3 | K26: 0 | L26: 020101 | M26: 0 | N26: 1e-06 | O26: 1 | P26: 20101
A27: 20101 | B27: 1.1155 | E27: 0.032308 | F27: دستگاه-ساعت | G27: جرثقیل کفی 3 تن باکامیون 7 تن با راننده | I27: 4 | J27: =IF(O27>0,COUNTIF(P1:P27,L27+N27),0) -> 4 | K27: 0 | L27: 020101 | M27: 0 | N27: 1e-06 | O27: 1 | P27: 20101
A28: 20101.00001 | B28: 1.1155 | E28: 0.160937 | F28: دستگاه-ساعت | G28: کمپکتورصفحه ای | I28: 5 | J28: =IF(O28>0,COUNTIF(P1:P28,L28+N28),0) -> 5 | K28: 0 | L28: 020101 | M28: 0 | N28: 1e-06 | O28: 1 | P28: 20101
A29: 20101.00001 | B29: 1.1155 | E29: 0.004 | F29: دستگاه-ساعت | G29: گریدر به قدرت حدود150 اسب بخار باراننده | I29: 6 | J29: =IF(O29>0,COUNTIF(P1:P29,L29+N29),0) -> 6 | K29: 0 | L29: 020101 | M29: 0 | N29: 1e-06 | O29: 1 | P29: 20101
A30: 20101.00001 | B30: 1.1155 | E30: 0.0224 | F30: دستگاه ساعت | G30: مخزن سیار 2500 لیتر بدون کشنده | I30: 7 | J30: =IF(O30>0,COUNTIF(P1:P30,L30+N30),0) -> 7 | K30: 0 | L30: 020101 | M30: 0 | N30: 1e-06 | O30: 1 | P30: 20101
A31: 20101.00001 | B31: 1.1155 | E31: 0.0336 | F31: دستگاه ساعت | G31: موتور پمپ تست | I31: 8 | J31: =IF(O31>0,COUNTIF(P1:P31,L31+N31),0) -> 8 | K31: 0 | L31: 020101 | M31: 0 | N31: 1e-06 | O31: 1 | P31: 20101
B32: ضريب | E32: مقـدار | F32: واحــد | G32: حمل مصالح | I32: رديف | J32: =IF(O32>0,COUNTIF(P1:P32,L32+N32),0) ->  | K32: 0 | L32: 020101 | M32: 0.01 | N32: 0.01
A33: 20101.01 | B33: 1.1155 | E33: 0.104243 | F33: مترمكعب | G33: حمل آب چاه قنات و رودخانه | I33: 1 | J33: =IF(O33>0,COUNTIF(P1:P33,L33+N33),0) -> 1 | K33: 0 | L33: 020101 | M33: 0 | N33: 0.01 | O33: 1 | P33: 20101.01
A34: 20101.02 | B34: 1.1155 | E34: 0.104243 | F34: مترمكعب | G34: حمل آب چاه و قنات | I34: 2 | J34: =IF(O34>0,COUNTIF(P1:P34,L34+N34),0) -> 2 | K34: 0 | L34: 020101 | M34: 0 | N34: 0.01 | O34: 1 | P34: 20101.01
H35: 020102 | J35: =IF(O35>0,COUNTIF(P1:P35,L35+N35),0) ->  | K35: 020102 | L35: 020102 | M35: 0 | N35: 0.01
G36: متر طول | I36: واحـد : | J36: =IF(O36>0,COUNTIF(P1:P36,L36+N36),0) ->  | K36: 0 | L36: 020102 | M36: 0 | N36: 0.01
B37: ضريب | E37: مقـدار | F37: واحــد | G37: نيروي انساني | I37: رديف | J37: =IF(O37>0,COUNTIF(P1:P37,L37+N37),0) ->  | K37: 0 | L37: 020102 | M37: 1e-08 | N37: 1e-08
A38: 20102 | B38: 1.1931 | E38: 0.054156 | F38: نفر- ساعت | G38: سرپرست عمليات لوله گذاري خطوط انتقال آب | I38: 1 | J38: =IF(O38>0,COUNTIF(P1:P38,L38+N38),0) -> 1 | K38: 0 | L38: 020102 | M38: 0 | N38: 1e-08 | O38: 1 | P38: 20102
A39: 20102 | B39: 1.1931 | E39: 0.008 | F39: نفر - ساعت | G39: کمک بنای بتن کار | I39: 2 | J39: =IF(O39>0,COUNTIF(P1:P39,L39+N39),0) -> 2 | K39: 0 | L39: 020102 | M39: 0 | N39: 1e-08 | O39: 1 | P39: 20102
A40: 20102 | B40: 1.1931 | E40: 0.0768 | F40: نفر ساعت | G40: کمک بنای سفت کار | I40: 3 | J40: =IF(O40>0,COUNTIF(P1:P40,L40+N40),0) -> 3 | K40: 0 | L40: 020102 | M40: 0 | N40: 1e-08 | O40: 1 | P40: 20102
A41: 20102 | B41: 1.1931 | E41: 0.112067 | F41: نفر- ساعت | G41: کمک لوله گذارلوله های چدنی نشکن داکتیل ولوله های فولادی اتصال مکانیکی | I41: 4 | J41: =IF(O41>0,COUNTIF(P1:P41,L41+N41),0) -> 4 | K41: 0 | L41: 020102 | M41: 0 | N41: 1e-08 | O41: 1 | P41: 20102
A42: 20102 | B42: 1.1931 | E42: 0.032 | F42: نفر- ساعت | G42: کمک نقشه بردار (ترازیاب) | I42: 5 | J42: =IF(O42>0,COUNTIF(P1:P42,L42+N42),0) -> 5 | K42: 0 | L42: 020102 | M42: 0 | N42: 1e-08 | O42: 1 | P42: 20102
A43: 20102 | B43: 1.1931 | E43: 0.122836 | F43: نفر- ساعت | G43: لوله گذاردرجه دولوله های چدنی نشکن داکتیل ولوله های فولادی اتصال مکانیکی | I43: 6 | J43: =IF(O43>0,COUNTIF(P1:P43,L43+N43),0) -> 6 | K43: 0 | L43: 020102 | M43: 0 | N43: 1e-08 | O43: 1 | P43: 20102
A44: 20102 | B44: 1.1931 | E44: 0.005385 | F44: نفر- ساعت | G44: لوله گذاردرجه یک لوله های چدنی نشکن داکتیل ولوله های فولادی اتصال مکانیکی | I44: 7 | J44: =IF(O44>0,COUNTIF(P1:P44,L44+N44),0) -> 7 | K44: 0 | L44: 020102 | M44: 0 | N44: 1e-08 | O44: 1 | P44: 20102
A45: 20102 | B45: 1.1931 | E45: 0.15823 | F45: نفر ساعت | G45: متصدی غلطکهای دستی | I45: 8 | J45: =IF(O45>0,COUNTIF(P1:P45,L45+N45),0) -> 8 | K45: 0 | L45: 020102 | M45: 0 | N45: 1e-08 | O45: 1 | P45: 20102
A46: 20102 | B46: 1.1931 | E46: 0.008 | F46: نفر ساعت | G46: نقشه بردار با سابقه بیش از 10 سال | I46: 9 | J46: =IF(O46>0,COUNTIF(P1:P46,L46+N46),0) -> 9 | K46: 0 | L46: 020102 | M46: 0 | N46: 1e-08 | O46: 1 | P46: 20102
A47: 20102 | B47: 1.1931 | E47: 0.0164 | F47: نفر- ساعت | G47: مباشر عملیات خاکی با سابقه بیش از 10 سال | I47: 10 | J47: =IF(O47>0,COUNTIF(P1:P47,L47+N47),0) -> 10 | K47: 0 | L47: 020102 | M47: 0 | N47: 1e-08 | O47: 1 | P47: 20102
A48: 20102 | B48: 1.1931 | E48: 0.097 | F48: نفر- ساعت | G48: کارگر نقشه‌برداري (ميرکش) | I48: 11 | J48: =IF(O48>0,COUNTIF(P1:P48,L48+N48),0) -> 11 | K48: 0 | L48: 020102 | M48: 0 | N48: 1e-08 | O48: 1 | P48: 20102
A49: 20102 | B49: 1.1931 | E49: 2.066825 | F49: نفر- ساعت | G49: كارگر ساده | I49: 12 | J49: =IF(O49>0,COUNTIF(P1:P49,L49+N49),0) -> 12 | K49: 0 | L49: 020102 | M49: 0 | N49: 1e-08 | O49: 1 | P49: 20102
B50: ضريب | E50: مقـدار | F50: واحــد | G50: ماشين آلات | I50: رديف | J50: =IF(O50>0,COUNTIF(P1:P50,L50+N50),0) ->  | K50: 0 | L50: 020102 | M50: 1e-06 | N50: 1e-06
A51: 20102 | B51: 1.1155 | E51: 0.045 | F51: دستگاه ساعت | G51: بیل مکانیکی چرخ لاستیکی یازنجیری به قدرت حدود80 اسب بخار با راننده | I51: 1 | J51: =IF(O51>0,COUNTIF(P1:P51,L51+N51),0) -> 1 | K51: 0 | L51: 020102 | M51: 0 | N51: 1e-06 | O51: 1 | P51: 20102
A52: 20102 | B52: 1.1155 | E52: 0.027449 | F52: دستگاه-ساعت | G52: تانکر آب پاش به ظرفيت حدود 5000 ليتر باراننده | I52: 2 | J52: =IF(O52>0,COUNTIF(P1:P52,L52+N52),0) -> 2 | K52: 0 | L52: 020102 | M52: 0 | N52: 1e-06 | O52: 1 | P52: 20102
A53: 20102 | B53: 1.1155 | E53: 0.0224 | F53: دستگاه ساعت | G53: تراکتور جفت دیفرانسیل با راننده | I53: 3 | J53: =IF(O53>0,COUNTIF(P1:P53,L53+N53),0) -> 3 | K53: 0 | L53: 020102 | M53: 0 | N53: 1e-06 | O53: 1 | P53: 20102
A54: 20102 | B54: 1.1155 | E54: 0.032308 | F54: دستگاه-ساعت | G54: جرثقیل کفی 3 تن باکامیون 7 تن با راننده | I54: 4 | J54: =IF(O54>0,COUNTIF(P1:P54,L54+N54),0) -> 4 | K54: 0 | L54: 020102 | M54: 0 | N54: 1e-06 | O54: 1 | P54: 20102
A55: 20102.00001 | B55: 1.1155 | E55: 0.15823 | F55: دستگاه-ساعت | G55: کمپکتورصفحه ای | I55: 5 | J55: =IF(O55>0,COUNTIF(P1:P55,L55+N55),0) -> 5 | K55: 0 | L55: 020102 | M55: 0 | N55: 1e-06 | O55: 1 | P55: 20102
A56: 20102.00001 | B56: 1.1155 | E56: 0.004 | F56: دستگاه-ساعت | G56: گریدر به قدرت حدود150 اسب بخار باراننده | I56: 6 | J56: =IF(O56>0,COUNTIF(P1:P56,L56+N56),0) -> 6 | K56: 0 | L56: 020102 | M56: 0 | N56: 1e-06 | O56: 1 | P56: 20102
A57: 20102.00001 | B57: 1.1155 | E57: 0.0224 | F57: دستگاه ساعت | G57: مخزن سیار 2500 لیتر بدون کشنده | I57: 7 | J57: =IF(O57>0,COUNTIF(P1:P57,L57+N57),0) -> 7 | K57: 0 | L57: 020102 | M57: 0 | N57: 1e-06 | O57: 1 | P57: 20102
A58: 20102.00001 | B58: 1.1155 | E58: 0.0336 | F58: دستگاه ساعت | G58: موتور پمپ تست | I58: 8 | J58: =IF(O58>0,COUNTIF(P1:P58,L58+N58),0) -> 8 | K58: 0 | L58: 020102 | M58: 0 | N58: 1e-06 | O58: 1 | P58: 20102
B59: ضريب | E59: مقـدار | F59: واحــد | G59: حمل مصالح | I59: رديف | J59: =IF(O59>0,COUNTIF(P1:P59,L59+N59),0) ->  | K59: 0 | L59: 020102 | M59: 0.01 | N59: 0.01
A60: 20102.01 | B60: 1.1155 | E60: 0.106807 | F60: مترمكعب | G60: حمل آب چاه قنات و رودخانه | I60: 1 | J60: =IF(O60>0,COUNTIF(P1:P60,L60+N60),0) -> 1 | K60: 0 | L60: 020102 | M60: 0 | N60: 0.01 | O60: 1 | P60: 20102.01
A61: 20102.02 | B61: 1.1155 | E61: 0.106807 | F61: مترمكعب | G61: حمل آب چاه و قنات | I61: 2 | J61: =IF(O61>0,COUNTIF(P1:P61,L61+N61),0) -> 2 | K61: 0 | L61: 020102 | M61: 0 | N61: 0.01 | O61: 1 | P61: 20102.01
H62: 080101 | J62: =IF(O62>0,COUNTIF(P1:P62,L62+N62),0) ->  | K62: 080101 | L62: 080101 | M62: 0 | N62: 0.01
G63: مترمكعب | I63: واحـد : | J63: =IF(O63>0,COUNTIF(P1:P63,L63+N63),0) ->  | K63: 0 | L63: 080101 | M63: 0 | N63: 0.01
B64: ضريب | E64: مقـدار | F64: واحــد | G64: نيروي انساني | I64: رديف | J64: =IF(O64>0,COUNTIF(P1:P64,L64+N64),0) ->  | K64: 0 | L64: 080101 | M64: 1e-08 | N64: 1e-08
A65: 80101 | B65: 1.23 | E65: 0.00889 | F65: نفر- ساعت | G65: مباشر عملیات خاکی با سابقه بیش از 10 سال | I65: 1 | J65: =IF(O65>0,COUNTIF(P1:P65,L65+N65),0) -> 1 | K65: 0 | L65: 080101 | M65: 0 | N65: 1e-08 | O65: 1 | P65: 80101
A66: 80101 | B66: 1.23 | E66: 0.04 | F66: نفر- ساعت | G66: کارگر نقشه‌برداري (ميرکش) | I66: 2 | J66: =IF(O66>0,COUNTIF(P1:P66,L66+N66),0) -> 2 | K66: 0 | L66: 080101 | M66: 0 | N66: 1e-08 | O66: 1 | P66: 80101
A67: 80101 | B67: 1.15 | E67: 1.154 | F67: نفر- ساعت | G67: كارگر ساده | I67: 3 | J67: =IF(O67>0,COUNTIF(P1:P67,L67+N67),0) -> 3 | K67: 0 | L67: 080101 | M67: 0 | N67: 1e-08 | O67: 1 | P67: 80101
B68: ضريب | E68: مقـدار | F68: واحــد | G68: ماشين آلات | I68: رديف | J68: =IF(O68>0,COUNTIF(P1:P68,L68+N68),0) ->  | K68: 0 | L68: 080101 | M68: 1e-06 | N68: 1e-06
A69: 80101 | B69: 1.23 | E69: -0.04 | F69: دستگاه ساعت | G69: بیل مکانیکی چرخ لاستیکی یازنجیری به قدرت حدود80 اسب بخار با راننده | I69: 1 | J69: =IF(O69>0,COUNTIF(P1:P69,L69+N69),0) -> 1 | K69: 0 | L69: 080101 | M69: 0 | N69: 1e-06 | O69: 1 | P69: 80101
A70: 80101 | B70: 1.15 | E70: 0.0035 | F70: عدد | G70: بیل | I70: 2 | J70: =IF(O70>0,COUNTIF(P1:P70,L70+N70),0) -> 2 | K70: 0 | L70: 080101 | M70: 0 | N70: 1e-06 | O70: 1 | P70: 80101
H71: 080102 | J71: =IF(O71>0,COUNTIF(P1:P71,L71+N71),0) ->  | K71: 080102 | L71: 080102 | M71: 0 | N71: 1e-06
G72: مترمكعب | I72: واحـد : | J72: =IF(O72>0,COUNTIF(P1:P72,L72+N72),0) ->  | K72: =H72 -> 0 | L72: 080102 | M72: 0 | N72: 1e-06
B73: ضريب | D73: 0 | E73: مقـدار | F73: واحــد | G73: نيروي انساني | I73: رديف | J73: =IF(O73>0,COUNTIF(P1:P73,L73+N73),0) ->  | K73: 0 | L73: =IF(K73>0,K73,L72) -> 080102 | M73: 1e-08 | N73: 1e-08
A74: 80102 | B74: 1.23 | D74: 1.353852348 | E74: 0.00889 | F74: نفر- ساعت | G74: مباشر عملیات خاکی با سابقه بیش از 10 سال | I74: 1 | J74: =IF(O74>0,COUNTIF(P1:P74,L74+N74),0) -> 1 | K74: 0 | L74: 080102 | M74: =IF(I74="رديف",VLOOKUP(G74,Kod,2,0),0) -> 0 | N74: =IF(M74>0,M74,N73) -> 1e-08 | O74: =I74/I74 -> 1 | P74: =IF(O74>0,N74+L74,0) -> 80102
A75: =L75+(J75*N75) -> 80102 | B75: 1.23 | D75: 1.353852348 | E75: 0.04 | F75: نفر- ساعت | G75: کارگر نقشه‌برداري (ميرکش) | I75: 2 | J75: =IF(O75>0,COUNTIF(P1:P75,L75+N75),0) -> 2 | K75: 0 | L75: 080102 | M75: 0 | N75: 1e-08 | O75: 1 | P75: 80102
A76: 80102 | B76: 1.15 | D76: 1.26579691 | E76: 0.2119 | F76: نفر - ساعت | G76: متصدی کمپرسور | I76: 3 | J76: =IF(O76>0,COUNTIF(P1:P76,L76+N76),0) -> 3 | K76: 0 | L76: 080102 | M76: 0 | N76: 1e-08 | O76: 1 | P76: 80102
A77: 80102 | B77: 1.15 | D77: 1.26579691 | E77: 1.4666 | F77: نفر- ساعت | G77: كارگر ساده | I77: 4 | J77: =IF(O77>0,COUNTIF(P1:P77,L77+N77),0) -> 4 | K77: 0 | L77: 080102 | M77: 0 | N77: 1e-08 | O77: 1 | P77: 80102
A78: 80102 | B78: 1.15 | D78: 1.26579691 | E78: 0.4242 | F78: نفر- ساعت | G78: چکش گیر (مینور) | I78: 5 | J78: =IF(O78>0,COUNTIF(P1:P78,L78+N78),0) -> 5 | K78: 0 | L78: 080102 | M78: 0 | N78: 1e-08 | O78: 1 | P78: 80102
B79: ضريب | D79: 0 | E79: مقـدار | F79: واحــد | G79: ماشين آلات | I79: رديف | J79: =IF(O79>0,COUNTIF(P1:P79,L79+N79),0) ->  | K79: 0 | L79: 080102 | M79: 1e-06 | N79: 1e-06
A80: 80102 | B80: 1.23 | D80: 1.353852348 | E80: -0.04 | F80: دستگاه ساعت | G80: بیل مکانیکی چرخ لاستیکی یازنجیری به قدرت حدود80 اسب بخار با راننده | I80: 1 | J80: =IF(O80>0,COUNTIF(P1:P80,L80+N80),0) -> 1 | K80: 0 | L80: 080102 | M80: 0 | N80: 1e-06 | O80: 1 | P80: 80102
A81: 80102 | B81: 1.15 | D81: 1.26579691 | E81: 0.2119 | F81: دستگاه ساعت | G81: چکش دج بر 32 کیلوگرم | I81: 2 | J81: =IF(O81>0,COUNTIF(P1:P81,L81+N81),0) -> 2 | K81: 0 | L81: 080102 | M81: 0 | N81: 1e-06 | O81: 1 | P81: 80102
A82: 80102 | B82: 1.15 | D82: 1.26579691 | E82: 0.2119 | F82: دستگاه-ساعت | G82: کمپرسور باظرفیت حدود 5 متر مکعب دردقیقه (180 سی اف ام) با شیلنگ مربوط | I82: 3 | J82: =IF(O82>0,COUNTIF(P1:P82,L82+N82),0) -> 3 | K82: 0 | L82: 080102 | M82: 0 | N82: 1e-06 | O82: 1 | P82: 80102
A83: 80102 | B83: 1.15 | D83: 1.26579691 | E83: 0.0018 | F83: عدد | G83: بیل | I83: 4 | J83: =IF(O83>0,COUNTIF(P1:P83,L83+N83),0) -> 4 | K83: 0 | L83: 080102 | M83: 0 | N83: 1e-06 | O83: 1 | P83: 80102
A84: 80102 | B84: 1.15 | D84: 1.26579691 | E84: 0.00148 | F84: عدد | G84: کلنگ دو سر | I84: 5 | J84: =IF(O84>0,COUNTIF(P1:P84,L84+N84),0) -> 5 | K84: 0 | L84: 080102 | M84: 0 | N84: 1e-06 | O84: 1 | P84: 80102
A14235: =L14235+(J14235*N14235) -> 0

Sheet Manabeh
A1: رديف | C1: شرح | D1: واحد | E1: بهای واحد نت | F1: بهای واحد آمار | G1: بهای واحد روز
A2: 1 | B2: =MID(C2,1,60)&RIGHT(C2,60)&D2 -> سرپرست عمليات لوله گذاري خطوط انتقال آبسرپرست عمليات لوله گذاري خطوط انتقال آبنفر- ساعت | C2: سرپرست عمليات لوله گذاري خطوط انتقال آب | D2: نفر- ساعت | E2: 91300
A3: 2 | B3: کمک بنای بتن کارکمک بنای بتن کارنفر - ساعت | C3: کمک بنای بتن کار | D3: نفر - ساعت | E3: 41301 | F3: 76935
A4: 3 | B4: کمک بنای سفت کارکمک بنای سفت کارنفر ساعت | C4: کمک بنای سفت کار | D4: نفر ساعت | E4: 39338 | F4: 67555
A5: 4 | B5: کمک لوله گذارلوله های چدنی نشکن داکتیل ولوله های فولادی اتصاگذارلوله های چدنی نشکن داکتیل ولوله های فولادی اتصال مکانیکینفر- ساعت | C5: کمک لوله گذارلوله های چدنی نشکن داکتیل ولوله های فولادی اتصال مکانیکی | D5: نفر- ساعت | E5: 42325
A6: 5 | B6: کمک نقشه بردار (ترازیاب)کمک نقشه بردار (ترازیاب)نفر- ساعت | C6: کمک نقشه بردار (ترازیاب) | D6: نفر- ساعت | E6: 62227
A7: 6 | B7: لوله گذاردرجه دولوله های چدنی نشکن داکتیل ولوله های فولادی اه دولوله های چدنی نشکن داکتیل ولوله های فولادی اتصال مکانیکینفر- ساعت | C7: لوله گذاردرجه دولوله های چدنی نشکن داکتیل ولوله های فولادی اتصال مکانیکی | D7: نفر- ساعت | E7: 55418
A8: 7 | B8: لوله گذاردرجه یک لوله های چدنی نشکن داکتیل ولوله های فولادی یک لوله های چدنی نشکن داکتیل ولوله های فولادی اتصال مکانیکینفر- ساعت | C8: لوله گذاردرجه یک لوله های چدنی نشکن داکتیل ولوله های فولادی اتصال مکانیکی | D8: نفر- ساعت | E8: 71384
A9: 8 | B9: متصدی غلطکهای دستیمتصدی غلطکهای دستینفر ساعت | C9: متصدی غلطکهای دستی | D9: نفر ساعت | E9: 49200
A10: 9 | B10: نقشه بردار با سابقه بیش از 10 سالنقشه بردار با سابقه بیش از 10 سالنفر ساعت | C10: نقشه بردار با سابقه بیش از 10 سال | D10: نفر ساعت | E10: 123112
A11: 10 | B11: مباشر عملیات خاکی با سابقه بیش از 10 سالمباشر عملیات خاکی با سابقه بیش از 10 سالنفر- ساعت | C11: مباشر عملیات خاکی با سابقه بیش از 10 سال | D11: نفر- ساعت | E11: 111996
A12: 11 | B12: کارگر نقشه‌برداري (ميرکش)کارگر نقشه‌برداري (ميرکش)نفر- ساعت | C12: کارگر نقشه‌برداري (ميرکش) | D12: نفر- ساعت | E12: 45844
A13: 12 | B13: متصدی کمپرسورمتصدی کمپرسورنفر - ساعت | C13: متصدی کمپرسور | D13: نفر - ساعت | E13: 49200
A14: 13 | B14: كارگر سادهكارگر سادهنفر- ساعت | C14: كارگر ساده | D14: نفر- ساعت | E14: 40380 | F14: 58592
A15: 14 | B15: چکش گیر (مینور)چکش گیر (مینور)نفر- ساعت | C15: چکش گیر (مینور) | D15: نفر- ساعت | E15: 51914
A16: 15 | B16: بیل مکانیکی چرخ لاستیکی یازنجیری به قدرت حدود80 اسب بخار بانیکی چرخ لاستیکی یازنجیری به قدرت حدود80 اسب بخار با رانندهدستگاه ساعت | C16: بیل مکانیکی چرخ لاستیکی یازنجیری به قدرت حدود80 اسب بخار با راننده | D16: دستگاه ساعت | E16: 327724
A17: 16 | B17: تانکر آب پاش به ظرفيت حدود 5000 ليتر بارانندهتانکر آب پاش به ظرفيت حدود 5000 ليتر بارانندهدستگاه-ساعت | C17: تانکر آب پاش به ظرفيت حدود 5000 ليتر باراننده | D17: دستگاه-ساعت | E17: 130798 | F17: 319813
A18: 17 | B18: تراکتور جفت دیفرانسیل با رانندهتراکتور جفت دیفرانسیل با رانندهدستگاه ساعت | C18: تراکتور جفت دیفرانسیل با راننده | D18: دستگاه ساعت | E18: 81193
A19: 18 | B19: جرثقیل کفی 3 تن باکامیون 7 تن با رانندهجرثقیل کفی 3 تن باکامیون 7 تن با رانندهدستگاه-ساعت | C19: جرثقیل کفی 3 تن باکامیون 7 تن با راننده | D19: دستگاه-ساعت | E19: 200924
A20: 19 | B20: چکش دج بر 32 کیلوگرمچکش دج بر 32 کیلوگرمدستگاه ساعت | C20: چکش دج بر 32 کیلوگرم | D20: دستگاه ساعت | E20: 8542
A21: 20 | B21: کمپکتورصفحه ایکمپکتورصفحه ایدستگاه-ساعت | C21: کمپکتورصفحه ای | D21: دستگاه-ساعت | E21: 15455
A22: 21 | B22: گریدر به قدرت حدود150 اسب بخار بارانندهگریدر به قدرت حدود150 اسب بخار بارانندهدستگاه-ساعت | C22: گریدر به قدرت حدود150 اسب بخار باراننده | D22: دستگاه-ساعت | E22: 304304 | F22: 672006
A23: 22 | B23: مخزن سیار 2500 لیتر بدون کشندهمخزن سیار 2500 لیتر بدون کشندهدستگاه ساعت | C23: مخزن سیار 2500 لیتر بدون کشنده | D23: دستگاه ساعت | E23: 8115
A24: 23 | B24: کمپرسور باظرفیت حدود 5 متر مکعب دردقیقه (180 سی اف ام) با شیاظرفیت حدود 5 متر مکعب دردقیقه (180 سی اف ام) با شیلنگ مربوطدستگاه-ساعت | C24: کمپرسور باظرفیت حدود 5 متر مکعب دردقیقه (180 سی اف ام) با شیلنگ مربوط | D24: دستگاه-ساعت | E24: 76609
A25: 24 | B25: بیلبیلعدد | C25: بیل | D25: عدد | E25: 87183
A26: 25 | B26: کلنگ دو سرکلنگ دو سرعدد | C26: کلنگ دو سر | D26: عدد | E26: 130775
A27: 26 | B27: موتور پمپ تستموتور پمپ تستدستگاه ساعت | C27: موتور پمپ تست | D27: دستگاه ساعت | E27: 30436
A28: 27 | B28: حمل آب چاه قنات و رودخانهحمل آب چاه قنات و رودخانهمترمكعب | C28: حمل آب چاه قنات و رودخانه | D28: مترمكعب | E28: 27531
A29: 28 | B29: =MID(C29,1,60)&RIGHT(C29,60)&D29 -> حمل آب چاه و قناتحمل آب چاه و قناتمترمكعب | C29: حمل آب چاه و قنات | D29: مترمكعب | E29: 7318

Sheet Report
B1: «جدول 5 . تجزیه بهای اقلام کار»
B2: ='D2'!B1 -> فهرست بهای واحد پایه رشته شبکه توزیع آب رسته مهندسی آب سال 94
B3: =IF(Help!H1<>"","نام پروژه : "&Help!H1,"") -> نام پروژه : پروژه نمونه بصورت آزمایشی | E3: =IF(Help!H2<>"","نام دستگاه اجرايي : "&Help!H2,"") -> نام دستگاه اجرايي : ندارد متن آزمایشی است
B4: =IF(Help!H4<>"","نام پیمانکار : "&Help!H4,"") -> نام پیمانکار : آبگستران | E4: =IF(Help!H3<>"","نام مهندس مشاور : "&Help!H3,"") -> نام مهندس مشاور : آریان تدبیر غرب
B5: دانا

Sheet desk (hidden)
F1: برنامه آناليز و پيشنهاد قيمت دانــــــا نويسنده برنامه : اميد شيخـــا
F2: HTTP://WWW.KELASEFAN.COM
F3: Email: Kelasefan@gmail.com
